Workbook

Sheet Guide
K2: INDEX
K3: SHEET 1 - IN_OUT
K4: SHEET 2 - TECHNOLOGY INPUTS
K5: SHEET 3 - INITIAL SIZE & COST CALCULATIONS
J10: color code | K10: Color coding of cells and their function
K11: Input cells - Users can provide inputs in these cells
K12: Fixed cells - Non editable cells
K13: Linked cells - Linked to other cells
K14: Calculation cells - Contains calculations and formulas
J15: Cells other than "Inputs cells" are protected. Protected cells cannot be modified or edited but users can copy the data to other workbooks and sheets. Users can view formulas and links.
J16: This work is licensed under a Creative Commons Attribution 3.0 International
J17: License: | K17: https://creativecommons.org/licenses/by/3.0/au/
K19: Document Control
J20: 2018-08-08 | K20: derived from LevelisedComparison2.0.xls | L20: 1 | M20: K Urkalan, K Lovegrove
J21: 2018-08-17 | K21: Public realease version | L21: 1.1 | M21: K Urkalan, K Lovegrove

Sheet IN_OUT
B2: PARAMETERS | E2: UNITS | F2: INPUTS | M2: BACK TO INDEX
B3: Nameplate capacity | E3: MW | F3: 100 | G3: ( best accuracy in range 10 - 200 MW ) | K3: Input Cells
B4: Daily duration of delivery / storage | E4: Hours | F4: 6 | G4: ( valid for 0.5 - 48hrs ) | K4: Fixed Cells
B5: Base Year | F5: =TechnologyInputs!E8 -> 2017 | G5: ( assumes base cost data is for this year) | K5: Linked Cells
B6: Target Year | F6: 2017 | G6: ( uncertainty increases projecting | K6: Calculated Cells
G7: further into future)
A9: SI No | B9: Renewable Energy Technology | C9: Energy Capture | D9: Initial energy conversion | E9: Energy Storage | F9: Energy Conversion | G9: Collector multiple | H9: ='InitialSize&CostCalc'!K9 -> Actual collector capacity required | I9: Collector cost (a) | J9: ='InitialSize&CostCalc'!I9 -> Initial conversion capacity required | K9: Initial Conversion cost (b) | L9: ='InitialSize&CostCalc'!H9 -> Storage capacity required | M9: Storage cost (c) | N9: Final conversion capacity = nameplate output | O9: Final Conversion cost (d) | P9: Total installed cost (a+b+c+d) | Q9: Total specific cost
H10: ='InitialSize&CostCalc'!K10 -> MW | I10: ='InitialSize&CostCalc'!AA10 -> AUD $ | J10: ='InitialSize&CostCalc'!I10 -> MW | K10: ='InitialSize&CostCalc'!AQ10 -> AUD $ | L10: ='InitialSize&CostCalc'!H10 -> MWh | M10: ='InitialSize&CostCalc'!BH10 -> AUD $ | N10: ='InitialSize&CostCalc'!G10 -> MW | O10: ='InitialSize&CostCalc'!BX10 -> AUD $ | Q10: mAUD$/MW
A11: 1 | B11: PV no storage | C11: =TechnologyInputs!B11 -> Utility PV | D11: =TechnologyInputs!C11 -> na | E11: =TechnologyInputs!D11 -> na | F11: =TechnologyInputs!E11 -> na | G11: 1 | H11: ='InitialSize&CostCalc'!K11 -> 100 | I11: ='InitialSize&CostCalc'!AA11 -> 187000000 | J11: ='InitialSize&CostCalc'!I11 -> 100 | K11: ='InitialSize&CostCalc'!AQ11 -> 0 | L11: ='InitialSize&CostCalc'!H11 -> 0 | M11: ='InitialSize&CostCalc'!BH11 -> 0 | N11: ='InitialSize&CostCalc'!G11 -> 100 | O11: ='InitialSize&CostCalc'!BX11 -> 0 | P11: =SUM(I11:O11) -> 187000200 | Q11: =(P11/$F$3)/1000000 -> 1.870002
A12: =A11+1 -> 2 | B12: Wind no storage | C12: =TechnologyInputs!B12 -> Wind | D12: =TechnologyInputs!C12 -> na | E12: =TechnologyInputs!D12 -> na | F12: =TechnologyInputs!E12 -> na | G12: 1 | H12: ='InitialSize&CostCalc'!K12 -> 100 | I12: ='InitialSize&CostCalc'!AA12 -> 218000000 | J12: ='InitialSize&CostCalc'!I12 -> 100 | K12: ='InitialSize&CostCalc'!AQ12 -> 0 | L12: ='InitialSize&CostCalc'!H12 -> 0 | M12: ='InitialSize&CostCalc'!BH12 -> 0 | N12: ='InitialSize&CostCalc'!G12 -> 100 | O12: ='InitialSize&CostCalc'!BX12 -> 0 | P12: =SUM(I12:O12) -> 218000200 | Q12: =(P12/$F$3)/1000000 -> 2.180002
A13: 3 | B13: Utility PV/Batt | C13: =TechnologyInputs!B13 -> Utility PV | D13: =TechnologyInputs!C13 -> na | E13: =TechnologyInputs!D13 -> Batteries | F13: =TechnologyInputs!E13 -> Inverter | G13: 1 | H13: ='InitialSize&CostCalc'!K13 -> 111.1111111 | I13: ='InitialSize&CostCalc'!AA13 -> 205383605.3 | J13: ='InitialSize&CostCalc'!I13 -> 111.1111111 | K13: ='InitialSize&CostCalc'!AQ13 -> 0 | L13: ='InitialSize&CostCalc'!H13 -> 666.6666667 | M13: ='InitialSize&CostCalc'!BH13 -> 458490000 | N13: ='InitialSize&CostCalc'!G13 -> 100 | O13: ='InitialSize&CostCalc'!BX13 -> 11777811.71 | P13: 675652294.8 | Q13: 6.756522948
A14: 4 | B14: Utility PV/PHES | C14: =TechnologyInputs!B14 -> Utility PV | D14: =TechnologyInputs!C14 -> na | E14: =TechnologyInputs!D14 -> Hydro Dam | F14: =TechnologyInputs!E14 -> Hydro turbine | G14: 1 | H14: ='InitialSize&CostCalc'!K14 -> 125 | I14: ='InitialSize&CostCalc'!AA14 -> 228082265.5 | J14: ='InitialSize&CostCalc'!I14 -> 125 | K14: ='InitialSize&CostCalc'!AQ14 -> 0 | L14: ='InitialSize&CostCalc'!H14 -> 750 | M14: ='InitialSize&CostCalc'!BH14 -> 31952068.77 | N14: ='InitialSize&CostCalc'!G14 -> 100 | O14: ='InitialSize&CostCalc'!BX14 -> 184671662 | P14: 444706971.3 | Q14: 4.447069713
A15: 5 | B15: Utility PV/H2 | C15: =TechnologyInputs!B15 -> Utility PV | D15: =TechnologyInputs!C15 -> Electrolyser | E15: =TechnologyInputs!D15 -> Hydrogen | F15: =TechnologyInputs!E15 -> Fuel cell / GT | G15: 1 | H15: ='InitialSize&CostCalc'!K15 -> 299.8950367 | I15: ='InitialSize&CostCalc'!AA15 -> 496986125 | J15: ='InitialSize&CostCalc'!I15 -> 299.8950367 | K15: ='InitialSize&CostCalc'!AQ15 -> 145082152.9 | L15: ='InitialSize&CostCalc'!H15 -> 1052.631579 | M15: ='InitialSize&CostCalc'!BH15 -> 1667799.253 | N15: ='InitialSize&CostCalc'!G15 -> 100 | O15: ='InitialSize&CostCalc'!BX15 -> 101193553.5 | P15: 744931083.2 | Q15: 7.449310832
A16: 6 | B16: Wind/Batt | C16: =TechnologyInputs!B16 -> Wind | D16: =TechnologyInputs!C16 -> na | E16: =TechnologyInputs!D16 -> Batteries | F16: =TechnologyInputs!E16 -> Inverter | G16: 1 | H16: ='InitialSize&CostCalc'!K16 -> 111.1111111 | I16: ='InitialSize&CostCalc'!AA16 -> 239683553.7 | J16: ='InitialSize&CostCalc'!I16 -> 111.1111111 | K16: ='InitialSize&CostCalc'!AQ16 -> 0 | L16: ='InitialSize&CostCalc'!H16 -> 666.6666667 | M16: ='InitialSize&CostCalc'!BH16 -> 458490000 | N16: ='InitialSize&CostCalc'!G16 -> 100 | O16: ='InitialSize&CostCalc'!BX16 -> 11777811.71 | P16: 709952243.1 | Q16: 7.099522431
A17: 7 | B17: Wind/PHES | C17: =TechnologyInputs!B17 -> Wind | D17: =TechnologyInputs!C17 -> na | E17: =TechnologyInputs!D17 -> Hydro Dam | F17: =TechnologyInputs!E17 -> Hydro turbine | G17: 1 | H17: ='InitialSize&CostCalc'!K17 -> 125 | I17: ='InitialSize&CostCalc'!AA17 -> 266486679.4 | J17: ='InitialSize&CostCalc'!I17 -> 125 | K17: ='InitialSize&CostCalc'!AQ17 -> 0 | L17: ='InitialSize&CostCalc'!H17 -> 750 | M17: ='InitialSize&CostCalc'!BH17 -> 31952068.77 | N17: ='InitialSize&CostCalc'!G17 -> 100 | O17: ='InitialSize&CostCalc'!BX17 -> 184671662 | P17: 483111385.2 | Q17: 4.831113852
A18: 8 | B18: Wind/H2 | C18: =TechnologyInputs!B18 -> Wind | D18: =TechnologyInputs!C18 -> Electrolyser | E18: =TechnologyInputs!D18 -> Cavern | F18: =TechnologyInputs!E18 -> Fuel cell / GT | G18: 1 | H18: ='InitialSize&CostCalc'!K18 -> 299.8950367 | I18: ='InitialSize&CostCalc'!AA18 -> 585772317.7 | J18: ='InitialSize&CostCalc'!I18 -> 299.8950367 | K18: ='InitialSize&CostCalc'!AQ18 -> 145082152.9 | L18: ='InitialSize&CostCalc'!H18 -> 1052.631579 | M18: ='InitialSize&CostCalc'!BH18 -> 1667799.253 | N18: ='InitialSize&CostCalc'!G18 -> 100 | O18: ='InitialSize&CostCalc'!BX18 -> 101193553.5 | P18: 833717275.8 | Q18: 8.337172758
A19: 9 | B19: Grid VRE/Batt | C19: =TechnologyInputs!B19 -> Grid VRE | D19: =TechnologyInputs!C19 -> na | E19: =TechnologyInputs!D19 -> Batteries | F19: =TechnologyInputs!E19 -> Inverter | G19: 1 | I19: ='InitialSize&CostCalc'!AA19 -> 0 | J19: ='InitialSize&CostCalc'!I19 -> 111.1111111 | K19: ='InitialSize&CostCalc'!AQ19 -> 0 | L19: ='InitialSize&CostCalc'!H19 -> 666.6666667 | M19: ='InitialSize&CostCalc'!BH19 -> 458490000 | N19: ='InitialSize&CostCalc'!G19 -> 100 | O19: ='InitialSize&CostCalc'!BX19 -> 11777811.71 | P19: 470268689.5 | Q19: 4.702686895
A20: 10 | B20: Grid VRE/PHES | C20: =TechnologyInputs!B20 -> Grid VRE | D20: =TechnologyInputs!C20 -> na | E20: =TechnologyInputs!D20 -> Hydro Dam | F20: =TechnologyInputs!E20 -> Hydro turbine | G20: 1 | I20: ='InitialSize&CostCalc'!AA20 -> 0 | J20: ='InitialSize&CostCalc'!I20 -> 125 | K20: ='InitialSize&CostCalc'!AQ20 -> 0 | L20: ='InitialSize&CostCalc'!H20 -> 750 | M20: ='InitialSize&CostCalc'!BH20 -> 31952068.77 | N20: ='InitialSize&CostCalc'!G20 -> 100 | O20: ='InitialSize&CostCalc'!BX20 -> 184671662 | P20: 216624705.8 | Q20: 2.166247058
A21: 11 | B21: Grid VRE/H2 | C21: =TechnologyInputs!B21 -> Grid VRE | D21: =TechnologyInputs!C21 -> Electrolyser | E21: =TechnologyInputs!D21 -> Hydrogen | F21: =TechnologyInputs!E21 -> Fuel cell / GT | G21: 1 | I21: ='InitialSize&CostCalc'!AA21 -> 0 | J21: ='InitialSize&CostCalc'!I21 -> 299.8950367 | K21: ='InitialSize&CostCalc'!AQ21 -> 145082152.9 | L21: ='InitialSize&CostCalc'!H21 -> 1052.631579 | M21: ='InitialSize&CostCalc'!BH21 -> 1667799.253 | N21: ='InitialSize&CostCalc'!G21 -> 100 | O21: ='InitialSize&CostCalc'!BX21 -> 101193553.5 | P21: 247944958.1 | Q21: 2.479449581
A22: =A21+1 -> 12 | B22: Rooftop PV/Batt | C22: =TechnologyInputs!B22 -> Rooftop PV | D22: =TechnologyInputs!C22 -> na | E22: =TechnologyInputs!D22 -> Batteries | F22: =TechnologyInputs!E22 -> Inverter | G22: 1 | H22: ='InitialSize&CostCalc'!K22 -> 111.1111111 | I22: ='InitialSize&CostCalc'!AA22 -> 222222222.2 | J22: ='InitialSize&CostCalc'!I22 -> 111.1111111 | K22: ='InitialSize&CostCalc'!AQ22 -> 0 | L22: ='InitialSize&CostCalc'!H22 -> 666.6666667 | M22: ='InitialSize&CostCalc'!BH22 -> 458490000 | N22: ='InitialSize&CostCalc'!G22 -> 100 | O22: ='InitialSize&CostCalc'!BX22 -> 11777811.71 | P22: 692490911.7 | Q22: 6.924909117
A23: 13 | B23: Conc. Solar | C23: =TechnologyInputs!B23 -> Conc. Solar | D23: =TechnologyInputs!C23 -> na | E23: =TechnologyInputs!D23 -> Molten Salt | F23: =TechnologyInputs!E23 -> Steam turbine | G23: 1 | H23: ='InitialSize&CostCalc'!K23 -> 238.0952381 | I23: ='InitialSize&CostCalc'!AA23 -> 120129202.9 | J23: ='InitialSize&CostCalc'!I23 -> 238.0952381 | K23: ='InitialSize&CostCalc'!AQ23 -> 0 | L23: ='InitialSize&CostCalc'!H23 -> 1428.571429 | M23: ='InitialSize&CostCalc'!BH23 -> 37145085.45 | N23: ='InitialSize&CostCalc'!G23 -> 100 | O23: ='InitialSize&CostCalc'!BX23 -> 240000000 | P23: 397276055 | Q23: 3.97276055
A24: 14 | B24: Biomass+AD | C24: =TechnologyInputs!B24 -> Biomass+AD | D24: =TechnologyInputs!C24 -> Digestor | E24: =TechnologyInputs!D24 -> Gas accumulator | F24: =TechnologyInputs!E24 -> Turbine /eng. | I24: ='InitialSize&CostCalc'!AA24 -> 0 | J24: ='InitialSize&CostCalc'!I24 -> 294.1176471 | K24: ='InitialSize&CostCalc'!AQ24 -> 137573279 | L24: ='InitialSize&CostCalc'!H24 -> 5294.117647 | M24: ='InitialSize&CostCalc'!BH24 -> 40868433.53 | N24: ='InitialSize&CostCalc'!G24 -> 100 | O24: ='InitialSize&CostCalc'!BX24 -> 60060000 | P24: 238507400.8 | Q24: 2.385074008
A25: 15 | B25: Dry Biomass $5/GJ | C25: =TechnologyInputs!B25 -> Dry Biomass $5/GJ | D25: =TechnologyInputs!C25 -> na | E25: =TechnologyInputs!D25 -> Depot | F25: =TechnologyInputs!E25 -> Boiler&Turbine | I25: ='InitialSize&CostCalc'!AA25 -> 0 | K25: ='InitialSize&CostCalc'!AQ25 -> 0 | L25: ='InitialSize&CostCalc'!H25 -> 4500 | M25: ='InitialSize&CostCalc'!BH25 -> 30150 | N25: ='InitialSize&CostCalc'!G25 -> 100 | O25: ='InitialSize&CostCalc'!BX25 -> 340833000 | P25: 340867750 | Q25: 3.4086775
A26: 16 | B26: Dry Biomass $2.5/GJ | C26: =TechnologyInputs!B26 -> Dry Biomass $2.5/GJ | D26: =TechnologyInputs!C26 -> na | E26: =TechnologyInputs!D26 -> Depot | F26: =TechnologyInputs!E26 -> Boiler&Turbine | I26: ='InitialSize&CostCalc'!AA26 -> 0 | K26: ='InitialSize&CostCalc'!AQ26 -> 0 | L26: ='InitialSize&CostCalc'!H26 -> 4500 | M26: ='InitialSize&CostCalc'!BH26 -> 30150 | N26: ='InitialSize&CostCalc'!G26 -> 100 | O26: ='InitialSize&CostCalc'!BX26 -> 340833000 | P26: 340867750 | Q26: 3.4086775
A27: =A26+1 -> 17 | B27: HSA Geothermal | C27: =TechnologyInputs!B27 -> HSA Geothermal | D27: =TechnologyInputs!C27 -> na | E27: =TechnologyInputs!D27 -> Self | F27: =TechnologyInputs!E27 -> Turbine | I27: ='InitialSize&CostCalc'!AA27 -> 0 | J27: ='InitialSize&CostCalc'!I27 -> 500 | K27: ='InitialSize&CostCalc'!AQ27 -> 0 | L27: ='InitialSize&CostCalc'!H27 -> 0.1 | M27: ='InitialSize&CostCalc'!BH27 -> 0 | N27: ='InitialSize&CostCalc'!G27 -> 100 | O27: ='InitialSize&CostCalc'!BX27 -> 509282252.5 | P27: 509282852.6 | Q27: 5.092828526
A28: 18 | B28: EGS Geothermal | C28: =TechnologyInputs!B28 -> EGS Geothermal | D28: =TechnologyInputs!C28 -> na | E28: =TechnologyInputs!D28 -> Self | F28: =TechnologyInputs!E28 -> Turbine | I28: ='InitialSize&CostCalc'!AA28 -> 0 | J28: ='InitialSize&CostCalc'!I28 -> 500 | K28: ='InitialSize&CostCalc'!AQ28 -> 0 | L28: ='InitialSize&CostCalc'!H28 -> 0.1 | M28: ='InitialSize&CostCalc'!BH28 -> 0 | N28: ='InitialSize&CostCalc'!G28 -> 100 | O28: ='InitialSize&CostCalc'!BX28 -> 1218770789 | P28: =SUM(I28:O28) -> 1218771389 | Q28: 12.18771389

Sheet TechnologyInputs
B2: Global inputs | O2: Input Cells
B3: =IN_OUT!B3 -> Nameplate capacity | E3: =IN_OUT!F3 -> 100 | F3: =IN_OUT!E3 -> MW | O3: Fixed Cells
B4: =IN_OUT!B4 -> Daily duration of delivery / storage | E4: =IN_OUT!F4 -> 6 | F4: =IN_OUT!E4 -> Hours | O4: Linked Cells | S4: BACK TO INDEX
B5: =IN_OUT!B6 -> Target Year | E5: =IN_OUT!F6 -> 2017 | O5: Calculated Cells
B7: =IN_OUT!B7 ->  | E7: =IN_OUT!F7 ->  | F7: =IN_OUT!E7 -> 
B8: =IN_OUT!B5 -> Base Year | E8: 2017 | F8: (base year must align with data value inputs below) | S8: Energy Capture | AC8: Initial Energy Conversion | AM8: Energy Storage | AX8: Final Energy Conversion
B9: Energy Capture | C9: Initial energy conversion | D9: Energy Storage | E9: Energy Conversion | H9: Collector size multiplier | N9: Specific Installed cost | O9: baseline capacity | P9: Capture capacity factor | Q9: Power law size exponent | R9: Life-time | S9: Fixed O&M cost | T9: Variable O&M cost | U9: Input energy/ fuel cost | V9: Cost progress ratio | W9: deployment growth | Y9: Specific Installed cost | Z9: baseline capacity | AA9: Power law size exponent | AB9: Lifetime | AC9: Fixed O&M cost | AD9: Variable O&M cost | AE9: efficiency | AF9: Cost progress ratio | AG9: deployment growth | AI9: Specific Installed cost _ Energy | AJ9: baseline capacity | AK9: Power law size exponent | AL9: Lifetime | AM9: Fixed O&M cost | AN9: Variable O&M cost | AO9: % average capacity over lifetime | AP9: efficiency | AQ9: Cost progress ratio | AR9: deployment growth | AT9: Specific Installed cost | AU9: baseline capacity | AV9: Power law size exponent | AW9: Lifetime | AX9: Fixed O&M cost | AY9: Variable O&M cost | AZ9: efficiency | BA9: Cost progress ratio | BB9: deployment growth
N10: m$/MW | O10: MW | R10: year | S10: %/yr | T10: $/MWh | U10: $/MWh | W10: %/yr | Y10: m$/MW | AC10: %/yr | AD10: $/MWh | AG10: %/yr | AI10: $/MWh | AJ10: MWh | AL10: Year | AM10: %/yr | AN10: $/MWh | AR10: %/yr | AT10: m$/MW | AX10: %/yr | AY10: $/MWh | BB10: %/yr
A11: 1 | B11: Utility PV | C11: na | D11: na | E11: na | H11: =IN_OUT!G11 -> 1 | N11: 1.87 | O11: 100 | P11: 0.28 | Q11: 0.89 | R11: 30 | S11: 0.012 | T11: 0 | U11: 0 | V11: 0.85 | W11: 0.2 | Y11: 0 | Z11: 1 | AA11: 1 | AB11: 30 | AC11: 0 | AD11: 0 | AE11: 1 | AF11: 1 | AG11: 0 | AI11: 0 | AJ11: 1 | AK11: 1 | AL11: 30 | AM11: 0 | AN11: 0 | AO11: 1 | AP11: 1 | AQ11: 1 | AR11: 0 | AT11: 0 | AU11: 1 | AV11: 1 | AW11: 30 | AX11: 0 | AY11: 0 | AZ11: 1 | BA11: 1 | BB11: 0
A12: =A11+1 -> 2 | B12: Wind | C12: na | D12: na | E12: na | H12: =IN_OUT!G12 -> 1 | N12: 2.18 | O12: 100 | P12: 0.38 | Q12: 0.9 | R12: 30 | S12: 0.02 | T12: 0 | U12: 0 | V12: 0.85 | W12: 0.1 | Y12: 0 | Z12: 1 | AA12: 1 | AB12: 30 | AC12: 0 | AD12: 0 | AE12: 1 | AF12: 1 | AG12: 0 | AI12: 0 | AJ12: 1 | AK12: 1 | AL12: 30 | AM12: 0 | AN12: 0 | AO12: 1 | AP12: 1 | AQ12: 1 | AR12: 0 | AT12: 0 | AU12: 1 | AV12: 1 | AW12: 30 | AX12: 0 | AY12: 0 | AZ12: 1 | BA12: 1 | BB12: 0
A13: =A12+1 -> 3 | B13: Utility PV | C13: na | D13: Batteries | E13: Inverter | H13: =IN_OUT!G13 -> 1 | N13: 1.87 | O13: 100 | P13: 0.28 | Q13: 0.89 | R13: 30 | S13: 0.012 | T13: 0 | U13: 0 | V13: 0.85 | W13: 0.3 | Y13: 0 | Z13: 1 | AA13: 1 | AB13: 30 | AC13: 0 | AD13: 0 | AE13: 1 | AF13: 1 | AG13: 0 | AI13: 687735 | AJ13: 1 | AK13: 1 | AL13: 15 | AM13: 0.017 | AN13: 0 | AO13: 0.9 | AP13: 0.9 | AQ13: 0.85 | AR13: 0.4 | AT13: 0.39 | AU13: 1 | AV13: 0.74 | AW13: 20 | AX13: 0.02 | AY13: 10 | AZ13: 1 | BA13: 0.85 | BB13: 0.4
A14: =A13+1 -> 4 | B14: Utility PV | C14: na | D14: Hydro Dam | E14: Hydro turbine | H14: =IN_OUT!G14 -> 1 | N14: =N$13 -> 1.87 | O14: 100 | P14: 0.28 | Q14: 0.89 | R14: 30 | S14: 0.012 | T14: 0 | U14: 0 | V14: 0.85 | W14: 0.3 | Y14: 0 | Z14: 1 | AA14: 1 | AB14: 30 | AC14: 0 | AD14: 0 | AE14: 1 | AF14: 1 | AG14: 0 | AI14: 37000 | AJ14: 1200 | AK14: 0.7 | AL14: 30 | AM14: 0.02 | AN14: 0 | AO14: 1 | AP14: 1 | AQ14: 0.85 | AR14: 0.05 | AT14: 1.5 | AU14: 200 | AV14: 0.7 | AW14: 30 | AX14: 0.02 | AY14: 0 | AZ14: 0.8 | BA14: 0.85 | BB14: 0.05
A15: =A14+1 -> 5 | B15: Utility PV | C15: Electrolyser | D15: Hydrogen | E15: Fuel cell / GT | H15: =IN_OUT!G15 -> 1 | N15: 1.87 | O15: 100 | P15: 0.28 | Q15: 0.89 | R15: 30 | S15: 0.012 | T15: 0 | U15: 0 | V15: 0.85 | W15: 0.3 | Y15: 1.09 | Z15: 20 | AA15: 0.7 | AB15: 15 | AC15: 0.02 | AD15: 0 | AE15: 0.65 | AF15: 0.85 | AG15: 0.2 | AI15: 655 | AJ15: 20000 | AK15: 0.7 | AL15: 30 | AM15: 0.05 | AN15: 0 | AO15: 1 | AP15: 0.9 | AQ15: 0.85 | AR15: 0.2 | AT15: 1.64 | AU15: 20 | AV15: 0.7 | AW15: 30 | AX15: 0.03 | AY15: 0 | AZ15: 0.57 | BA15: 0.85 | BB15: 0.2
A16: 6 | B16: Wind | C16: na | D16: Batteries | E16: Inverter | H16: =IN_OUT!G16 -> 1 | N16: 2.18 | O16: 100 | P16: 0.38 | Q16: 0.9 | R16: 30 | S16: 0.02 | T16: 0 | U16: 0 | V16: 0.85 | W16: 0.1 | Y16: =Y$13 -> 0 | Z16: =Z$13 -> 1 | AA16: 1 | AB16: 30 | AC16: 0 | AD16: 0 | AE16: 1 | AF16: 1 | AG16: 0 | AI16: =AI$13 -> 687735 | AJ16: =AJ$13 -> 1 | AK16: 1 | AL16: 15 | AM16: 0.017 | AN16: 0 | AO16: 0.9 | AP16: 0.9 | AQ16: 0.85 | AR16: 0.4 | AT16: =AT$13 -> 0.39 | AU16: =AU$13 -> 1 | AV16: 0.74 | AW16: 20 | AX16: 0.02 | AY16: 10 | AZ16: 1 | BA16: 0.85 | BB16: 0.4
A17: 7 | B17: Wind | C17: na | D17: Hydro Dam | E17: Hydro turbine | H17: =IN_OUT!G17 -> 1 | N17: =N16 -> 2.18 | O17: =O16 -> 100 | P17: 0.38 | Q17: 0.9 | R17: 30 | S17: 0.02 | T17: 0 | U17: 0 | V17: 0.85 | W17: 0.1 | Y17: =Y14 -> 0 | Z17: 1 | AA17: 1 | AB17: 30 | AC17: 0 | AD17: 0 | AE17: 1 | AF17: 1 | AG17: 0 | AI17: =AI14 -> 37000 | AJ17: 1200 | AK17: 0.7 | AL17: 30 | AM17: 0.02 | AN17: 0 | AO17: 1 | AP17: 1 | AQ17: 0.85 | AR17: 0.05 | AT17: =AT14 -> 1.5 | AU17: 200 | AV17: 0.7 | AW17: 30 | AX17: 0.02 | AY17: 0 | AZ17: 0.8 | BA17: 0.85 | BB17: 0.05
A18: 8 | B18: Wind | C18: Electrolyser | D18: Cavern | E18: Fuel cell / GT | H18: =IN_OUT!G18 -> 1 | N18: =N17 -> 2.18 | O18: 100 | P18: 0.38 | Q18: 0.9 | R18: 30 | S18: 0.02 | T18: 0 | U18: 0 | V18: 0.85 | W18: 0.1 | Y18: =Y15 -> 1.09 | Z18: 20 | AA18: 0.7 | AB18: 15 | AC18: 0.02 | AD18: 0 | AE18: 0.65 | AF18: 0.85 | AG18: 0.2 | AI18: =AI15 -> 655 | AJ18: 20000 | AK18: 0.7 | AL18: 30 | AM18: 0.05 | AN18: 0 | AO18: 1 | AP18: 0.9 | AQ18: 0.85 | AR18: 0.2 | AT18: =AT15 -> 1.64 | AU18: 20 | AV18: 0.7 | AW18: 30 | AX18: 0.03 | AY18: 0 | AZ18: 0.57 | BA18: 0.85 | BB18: 0.2
A19: 9 | B19: Grid VRE | C19: na | D19: Batteries | E19: Inverter | H19: =IN_OUT!G19 -> 1 | N19: 0 | O19: 1 | P19: 0.8 | Q19: 1 | R19: 30 | S19: 0 | T19: 0 | U19: =(IN_OUT!$M$11+IN_OUT!$M$12)/2 -> 0 | V19: 0.85 | W19: 0.3 | Y19: =Y$13 -> 0 | Z19: =Z$13 -> 1 | AA19: 1 | AB19: 30 | AC19: 0 | AD19: 0 | AE19: 1 | AF19: 1 | AG19: 0 | AI19: =AI$13 -> 687735 | AJ19: =AJ$13 -> 1 | AK19: 1 | AL19: 15 | AM19: 0.017 | AN19: 0 | AO19: 0.9 | AP19: 0.9 | AQ19: 0.85 | AR19: 0.4 | AT19: =AT$13 -> 0.39 | AU19: =AU$13 -> 1 | AV19: 0.74 | AW19: 20 | AX19: 0.02 | AY19: 10 | AZ19: 1 | BA19: 0.85 | BB19: 0.4
A20: 10 | B20: Grid VRE | C20: na | D20: Hydro Dam | E20: Hydro turbine | H20: =IN_OUT!G20 -> 1 | N20: =N19 -> 0 | O20: =O19 -> 1 | P20: 0.8 | Q20: 1 | R20: 30 | S20: 0 | T20: 0 | U20: 0 | V20: 0.85 | W20: 0.3 | Y20: =Y14 -> 0 | Z20: 1 | AA20: 1 | AB20: 30 | AC20: 0 | AD20: 0 | AE20: 1 | AF20: 1 | AG20: 0 | AI20: =AI14 -> 37000 | AJ20: 1200 | AK20: 0.7 | AL20: 30 | AM20: 0.02 | AN20: 0 | AO20: 1 | AP20: 1 | AQ20: 0.85 | AR20: 0.05 | AT20: =AT14 -> 1.5 | AU20: 200 | AV20: 0.7 | AW20: 30 | AX20: 0.02 | AY20: 0 | AZ20: 0.8 | BA20: 0.85 | BB20: 0.05
A21: 11 | B21: Grid VRE | C21: Electrolyser | D21: Hydrogen | E21: Fuel cell / GT | H21: =IN_OUT!G21 -> 1 | N21: =N20 -> 0 | O21: 1 | P21: 0.8 | Q21: 1 | R21: 30 | S21: 0 | T21: 0 | U21: 0 | V21: 0.85 | W21: 0.3 | Y21: =Y15 -> 1.09 | Z21: 20 | AA21: 0.7 | AB21: 15 | AC21: 0.02 | AD21: 0 | AE21: 0.65 | AF21: 0.85 | AG21: 0.2 | AI21: =AI15 -> 655 | AJ21: 20000 | AK21: 0.7 | AL21: 30 | AM21: 0.05 | AN21: 0 | AO21: 1 | AP21: 0.9 | AQ21: 0.85 | AR21: 0.2 | AT21: =AT15 -> 1.64 | AU21: 20 | AV21: 0.7 | AW21: 30 | AX21: 0.03 | AY21: 0 | AZ21: 0.57 | BA21: 0.85 | BB21: 0.2
A22: 12 | B22: Rooftop PV | C22: na | D22: Batteries | E22: Inverter | H22: =IN_OUT!G22 -> 1 | N22: 2 | O22: 0.005 | P22: 0.17 | Q22: 1 | R22: 25 | S22: 0.02 | T22: 0 | U22: 0 | V22: 0.85 | W22: 0.3 | Y22: =Y$13 -> 0 | Z22: =Z$13 -> 1 | AA22: 1 | AB22: 30 | AC22: 0 | AD22: 0 | AE22: 1 | AF22: 1 | AG22: 0 | AI22: =AI$13 -> 687735 | AJ22: =AJ$13 -> 1 | AK22: 1 | AL22: 15 | AM22: 0.017 | AN22: 0 | AO22: 0.9 | AP22: 0.9 | AQ22: 0.85 | AR22: 0.4 | AT22: =AT$13 -> 0.39 | AU22: =AU$13 -> 1 | AV22: 0.74 | AW22: 20 | AX22: 0.02 | AY22: 10 | AZ22: 1 | BA22: 0.85 | BB22: 0.4
A23: 13 | B23: Conc. Solar | C23: na | D23: Molten Salt | E23: Steam turbine | H23: =IN_OUT!G23 -> 1 | N23: 0.46 | O23: 600 | P23: 0.187 | Q23: 0.9 | R23: 30 | S23: 0.02 | T23: 0 | U23: 0 | V23: 0.85 | W23: 0.2 | Y23: 0 | Z23: 1 | AA23: 1 | AB23: 30 | AC23: 0 | AD23: 0 | AE23: 1 | AF23: 1 | AG23: 0 | AI23: 26000 | AJ23: 1429 | AK23: 0.8 | AL23: 30 | AM23: 0.02 | AN23: 0 | AO23: 1 | AP23: 1 | AQ23: 0.85 | AR23: 0.2 | AT23: 2.4 | AU23: 100 | AV23: 0.7 | AW23: 30 | AX23: 0.02 | AY23: 0 | AZ23: 0.42 | BA23: 0.85 | BB23: 0.2
A24: 14 | B24: Biomass+AD | C24: Digestor | D24: Gas accumulator | E24: Turbine /eng. | H24: 1 | N24: 0 | O24: 1 | P24: 1 | Q24: 1 | R24: 20 | S24: 0 | T24: 0 | U24: 0 | V24: 0.85 | W24: 0.05 | Y24: 1.42 | Z24: 7.26 | AA24: 0.7 | AB24: 20 | AC24: 0.065 | AD24: 0 | AE24: 1 | AF24: 0.85 | AG24: 0.05 | AI24: 12391 | AJ24: 11 | AK24: 0.8 | AL24: 20 | AM24: 0.065 | AN24: 0 | AO24: 1 | AP24: 1 | AQ24: 0.85 | AR24: 0.05 | AT24: 0.91 | AU24: 2.5 | AV24: 0.7 | AW24: 20 | AX24: 0.065 | AY24: 0 | AZ24: 0.34 | BA24: 0.85 | BB24: 0.05
A25: 15 | B25: Dry Biomass $5/GJ | C25: na | D25: Depot | E25: Boiler&Turbine | H25: 0.02 | N25: 0 | O25: 1 | P25: 0.5 | Q25: 1 | R25: 25 | S25: 0 | T25: 0 | U25: 18 | V25: 0.85 | W25: 0.05 | Y25: 0 | Z25: 1 | AA25: 1 | AB25: 25 | AC25: 0 | AD25: 0 | AE25: 1 | AF25: 1 | AG25: 0 | AI25: 6.7 | AJ25: 44384 | AK25: 1 | AL25: 25 | AM25: 0.036 | AN25: 0 | AO25: 1 | AP25: 1 | AQ25: 0.85 | AR25: 0 | AT25: 4.89 | AU25: 15 | AV25: 0.7 | AW25: 25 | AX25: 0.036 | AY25: 0 | AZ25: 0.24 | BA25: 0.85 | BB25: 0.05
A26: 16 | B26: Dry Biomass $2.5/GJ | C26: na | D26: Depot | E26: Boiler&Turbine | H26: 0.02 | N26: 0 | O26: 1 | P26: 0.5 | Q26: 1 | R26: 25 | S26: 0 | T26: 0 | U26: 9 | V26: 0.85 | W26: 0.05 | Y26: 0 | Z26: 1 | AA26: 1 | AB26: 25 | AC26: 0 | AD26: 0 | AE26: 1 | AF26: 1 | AG26: 0 | AI26: 6.7 | AJ26: 44384 | AK26: 1 | AL26: 25 | AM26: 0.036 | AN26: 0 | AO26: 1 | AP26: 1 | AQ26: 0.85 | AR26: 0 | AT26: 4.89 | AU26: 15 | AV26: 0.7 | AW26: 25 | AX26: 0.036 | AY26: 0 | AZ26: 0.24 | BA26: 0.85 | BB26: 0.05
A27: =A26+1 -> 17 | B27: HSA Geothermal | C27: na | D27: Self | E27: Turbine | H27: 1 | N27: 0 | O27: 50 | P27: 1 | Q27: 1 | R27: 30 | S27: 0.02 | T27: 0 | U27: 0 | V27: 0.85 | W27: 0.05 | Y27: 0 | Z27: 1 | AA27: 1 | AB27: 30 | AC27: 0 | AD27: 0 | AE27: 1 | AF27: 1 | AG27: 0 | AI27: 0 | AJ27: 1 | AK27: 1 | AL27: 30 | AM27: 0 | AN27: 0 | AO27: 1 | AP27: 1 | AQ27: 0.85 | AR27: 0 | AT27: 6.27 | AU27: 50 | AV27: 0.7 | AW27: 30 | AX27: 0.02 | AY27: 0 | AZ27: 0.2 | BA27: 0.85 | BB27: 0.05
A28: 18 | B28: EGS Geothermal | C28: na | D28: Self | E28: Turbine | H28: 1 | N28: 0 | O28: 50 | P28: 1 | Q28: 1 | R28: 30 | S28: 0.02 | T28: 0 | U28: 0 | V28: 0.85 | W28: 0.05 | Y28: 0 | Z28: 1 | AA28: 1 | AB28: 30 | AC28: 0 | AD28: 0 | AE28: 1 | AF28: 1 | AG28: 0 | AI28: 0 | AJ28: 1 | AK28: 1 | AL28: 30 | AM28: 0 | AN28: 0 | AO28: 1 | AP28: 1 | AQ28: 0.85 | AR28: 0 | AT28: 14 | AU28: 50 | AV28: 0.8 | AW28: 30 | AX28: 0.02 | AY28: 0 | AZ28: 0.2 | BA28: 0.85 | BB28: 0.05
A42: DEFAULT TABLE VALUES - BASE YEAR | D42: 2017
B43: Energy Capture | C43: Initial energy conversion | D43: Energy Storage | E43: Energy Conversion | N43: Specific Installed cost | O43: baseline capacity | P43: Capture capacity factor | Q43: Power law size exponent | R43: Life-time | S43: Fixed O&M cost | T43: Variable O&M cost | U43: Input energy/ fuel cost | V43: Cost progress ratio | W43: deployment growth | Y43: Specific Installed cost | Z43: baseline capacity | AA43: Power law size exponent | AB43: Lifetime | AC43: Fixed O&M cost | AD43: Variable O&M cost | AE43: efficiency | AF43: Cost progress ratio | AG43: deployment growth | AI43: Specific Installed cost _ Energy | AJ43: baseline capacity | AK43: Power law size exponent | AL43: Lifetime | AM43: Fixed O&M cost | AN43: Variable O&M cost | AO43: % average capacity over lifetime | AP43: efficiency | AQ43: Cost progress ratio | AR43: deployment growth | AT43: Specific Installed cost | AU43: baseline capacity | AV43: Power law size exponent | AW43: Lifetime | AX43: Fixed O&M cost | AY43: Variable O&M cost | AZ43: efficiency | BA43: Cost progress ratio | BB43: deployment growth
N44: m$/MW | O44: MW | R44: year | S44: %/yr | T44: $/MWh | U44: $/MWh | W44: %/yr | Y44: m$/MW | AC44: %/yr | AD44: $/MWh | AG44: %/yr | AI44: $/MWh | AJ44: MWh | AL44: Year | AM44: %/yr | AN44: $/MWh | AR44: %/yr | AT44: m$/MW | AX44: %/yr | AY44: $/MWh | BB44: %/yr
A45: 1 | B45: Utility PV | C45: na | D45: na | E45: na | N45: 1.87 | O45: 100 | P45: 0.28 | Q45: 0.89 | R45: 30 | S45: 0.012 | T45: 0 | U45: 0 | V45: 0.85 | W45: 0.2 | Y45: 0 | Z45: 1 | AA45: 1 | AB45: 30 | AC45: 0 | AD45: 0 | AE45: 1 | AF45: 1 | AG45: 0 | AI45: 0 | AJ45: 1 | AK45: 1 | AL45: 30 | AM45: 0 | AN45: 0 | AO45: 1 | AP45: 1 | AQ45: 1 | AR45: 0 | AT45: 0 | AU45: 1 | AV45: 1 | AW45: 30 | AX45: 0 | AY45: 0 | AZ45: 1 | BA45: 1 | BB45: 0
A46: =A45+1 -> 2 | B46: Wind | C46: na | D46: na | E46: na | N46: 2.18 | O46: 100 | P46: 0.38 | Q46: 0.9 | R46: 30 | S46: 0.02 | T46: 0 | U46: 0 | V46: 0.85 | W46: 0.1 | Y46: 0 | Z46: 1 | AA46: 1 | AB46: 30 | AC46: 0 | AD46: 0 | AE46: 1 | AF46: 1 | AG46: 0 | AI46: 0 | AJ46: 1 | AK46: 1 | AL46: 30 | AM46: 0 | AN46: 0 | AO46: 1 | AP46: 1 | AQ46: 1 | AR46: 0 | AT46: 0 | AU46: 1 | AV46: 1 | AW46: 30 | AX46: 0 | AY46: 0 | AZ46: 1 | BA46: 1 | BB46: 0
A47: =A46+1 -> 3 | B47: Utility PV | C47: na | D47: Batteries | E47: Inverter | N47: 1.87 | O47: 100 | P47: 0.28 | Q47: 0.89 | R47: 30 | S47: 0.012 | T47: 0 | U47: 0 | V47: 0.85 | W47: 0.3 | Y47: 0 | Z47: 1 | AA47: 1 | AB47: 30 | AC47: 0 | AD47: 0 | AE47: 1 | AF47: 1 | AG47: 0 | AI47: 687735 | AJ47: 1 | AK47: 1 | AL47: 15 | AM47: 0.017 | AN47: 0 | AO47: 0.9 | AP47: 0.9 | AQ47: 0.85 | AR47: 0.4 | AT47: 0.39 | AU47: 1 | AV47: 0.74 | AW47: 20 | AX47: 0.02 | AY47: 10 | AZ47: 1 | BA47: 0.85 | BB47: 0.4
A48: =A47+1 -> 4 | B48: Utility PV | C48: na | D48: Hydro Dam | E48: Hydro turbine | N48: =N$13 -> 1.87 | O48: 100 | P48: 0.28 | Q48: 0.89 | R48: 30 | S48: 0.012 | T48: 0 | U48: 0 | V48: 0.85 | W48: 0.3 | Y48: 0 | Z48: 1 | AA48: 1 | AB48: 30 | AC48: 0 | AD48: 0 | AE48: 1 | AF48: 1 | AG48: 0 | AI48: 37000 | AJ48: 1200 | AK48: 0.7 | AL48: 30 | AM48: 0.02 | AN48: 0 | AO48: 1 | AP48: 1 | AQ48: 0.85 | AR48: 0.05 | AT48: 1.5 | AU48: 200 | AV48: 0.7 | AW48: 30 | AX48: 0.02 | AY48: 0 | AZ48: 0.8 | BA48: 0.85 | BB48: 0.05
A49: =A48+1 -> 5 | B49: Utility PV | C49: Electrolyser | D49: Hydrogen | E49: Fuel cell / GT | N49: 1.87 | O49: 100 | P49: 0.28 | Q49: 0.89 | R49: 30 | S49: 0.012 | T49: 0 | U49: 0 | V49: 0.85 | W49: 0.3 | Y49: 1.09 | Z49: 20 | AA49: 0.7 | AB49: 15 | AC49: 0.02 | AD49: 0 | AE49: 0.65 | AF49: 0.85 | AG49: 0.2 | AI49: 655 | AJ49: 20000 | AK49: 0.7 | AL49: 30 | AM49: 0.05 | AN49: 0 | AO49: 1 | AP49: 0.9 | AQ49: 0.85 | AR49: 0.2 | AT49: 1.64 | AU49: 20 | AV49: 0.7 | AW49: 30 | AX49: 0.03 | AY49: 0 | AZ49: 0.57 | BA49: 0.85 | BB49: 0.2
A50: 6 | B50: Wind | C50: na | D50: Batteries | E50: Inverter | N50: 2.18 | O50: 100 | P50: 0.38 | Q50: 0.9 | R50: 30 | S50: 0.02 | T50: 0 | U50: 0 | V50: 0.85 | W50: 0.1 | Y50: =Y$13 -> 0 | Z50: =Z$13 -> 1 | AA50: 1 | AB50: 30 | AC50: 0 | AD50: 0 | AE50: 1 | AF50: 1 | AG50: 0 | AI50: =AI$13 -> 687735 | AJ50: =AJ$13 -> 1 | AK50: 1 | AL50: 15 | AM50: 0.017 | AN50: 0 | AO50: 0.9 | AP50: 0.9 | AQ50: 0.85 | AR50: 0.4 | AT50: =AT$13 -> 0.39 | AU50: =AU$13 -> 1 | AV50: 0.74 | AW50: 20 | AX50: 0.02 | AY50: 10 | AZ50: 1 | BA50: 0.85 | BB50: 0.4
A51: 7 | B51: Wind | C51: na | D51: Hydro Dam | E51: Hydro turbine | N51: =N50 -> 2.18 | O51: =O50 -> 100 | P51: 0.38 | Q51: 0.9 | R51: 30 | S51: 0.02 | T51: 0 | U51: 0 | V51: 0.85 | W51: 0.1 | Y51: =Y48 -> 0 | Z51: 1 | AA51: 1 | AB51: 30 | AC51: 0 | AD51: 0 | AE51: 1 | AF51: 1 | AG51: 0 | AI51: =AI48 -> 37000 | AJ51: 1200 | AK51: 0.7 | AL51: 30 | AM51: 0.02 | AN51: 0 | AO51: 1 | AP51: 1 | AQ51: 0.85 | AR51: 0.05 | AT51: =AT48 -> 1.5 | AU51: 200 | AV51: 0.7 | AW51: 30 | AX51: 0.02 | AY51: 0 | AZ51: 0.8 | BA51: 0.85 | BB51: 0.05
A52: 8 | B52: Wind | C52: Electrolyser | D52: Cavern | E52: Fuel cell / GT | N52: =N51 -> 2.18 | O52: 100 | P52: 0.38 | Q52: 0.9 | R52: 30 | S52: 0.02 | T52: 0 | U52: 0 | V52: 0.85 | W52: 0.1 | Y52: =Y49 -> 1.09 | Z52: 20 | AA52: 0.7 | AB52: 15 | AC52: 0.02 | AD52: 0 | AE52: 0.65 | AF52: 0.85 | AG52: 0.2 | AI52: =AI49 -> 655 | AJ52: 20000 | AK52: 0.7 | AL52: 30 | AM52: 0.05 | AN52: 0 | AO52: 1 | AP52: 0.9 | AQ52: 0.85 | AR52: 0.2 | AT52: =AT49 -> 1.64 | AU52: 20 | AV52: 0.7 | AW52: 30 | AX52: 0.03 | AY52: 0 | AZ52: 0.57 | BA52: 0.85 | BB52: 0.2
A53: 9 | B53: Grid VRE | C53: na | D53: Batteries | E53: Inverter | N53: 0 | O53: 1 | P53: 0.8 | Q53: 1 | R53: 30 | S53: 0 | T53: 0 | U53: =(IN_OUT!$M$11+IN_OUT!$M$12)/2 -> 0 | V53: 0.85 | W53: 0.3 | Y53: =Y$13 -> 0 | Z53: =Z$13 -> 1 | AA53: 1 | AB53: 30 | AC53: 0 | AD53: 0 | AE53: 1 | AF53: 1 | AG53: 0 | AI53: =AI$13 -> 687735 | AJ53: =AJ$13 -> 1 | AK53: 1 | AL53: 15 | AM53: 0.017 | AN53: 0 | AO53: 0.9 | AP53: 0.9 | AQ53: 0.85 | AR53: 0.4 | AT53: =AT$13 -> 0.39 | AU53: =AU$13 -> 1 | AV53: 0.74 | AW53: 20 | AX53: 0.02 | AY53: 10 | AZ53: 1 | BA53: 0.85 | BB53: 0.4
A54: 10 | B54: Grid VRE | C54: na | D54: Hydro Dam | E54: Hydro turbine | N54: =N53 -> 0 | O54: =O53 -> 1 | P54: 0.8 | Q54: 1 | R54: 30 | S54: 0 | T54: 0 | U54: 0 | V54: 0.85 | W54: 0.3 | Y54: =Y48 -> 0 | Z54: 1 | AA54: 1 | AB54: 30 | AC54: 0 | AD54: 0 | AE54: 1 | AF54: 1 | AG54: 0 | AI54: =AI48 -> 37000 | AJ54: 1200 | AK54: 0.7 | AL54: 30 | AM54: 0.02 | AN54: 0 | AO54: 1 | AP54: 1 | AQ54: 0.85 | AR54: 0.05 | AT54: =AT48 -> 1.5 | AU54: 200 | AV54: 0.7 | AW54: 30 | AX54: 0.02 | AY54: 0 | AZ54: 0.8 | BA54: 0.85 | BB54: 0.05
A55: 11 | B55: Grid VRE | C55: Electrolyser | D55: Hydrogen | E55: Fuel cell / GT | N55: =N54 -> 0 | O55: 1 | P55: 0.8 | Q55: 1 | R55: 30 | S55: 0 | T55: 0 | U55: 0 | V55: 0.85 | W55: 0.3 | Y55: =Y49 -> 1.09 | Z55: 20 | AA55: 0.7 | AB55: 15 | AC55: 0.02 | AD55: 0 | AE55: 0.65 | AF55: 0.85 | AG55: 0.2 | AI55: =AI49 -> 655 | AJ55: 20000 | AK55: 0.7 | AL55: 30 | AM55: 0.05 | AN55: 0 | AO55: 1 | AP55: 0.9 | AQ55: 0.85 | AR55: 0.2 | AT55: =AT49 -> 1.64 | AU55: 20 | AV55: 0.7 | AW55: 30 | AX55: 0.03 | AY55: 0 | AZ55: 0.57 | BA55: 0.85 | BB55: 0.2
A56: 12 | B56: Rooftop PV | C56: na | D56: Batteries | E56: Inverter | N56: 2 | O56: 0.005 | P56: 0.17 | Q56: 1 | R56: 25 | S56: 0.02 | T56: 0 | U56: 0 | V56: 0.85 | W56: 0.3 | Y56: =Y$13 -> 0 | Z56: =Z$13 -> 1 | AA56: 1 | AB56: 30 | AC56: 0 | AD56: 0 | AE56: 1 | AF56: 1 | AG56: 0 | AI56: =AI$13 -> 687735 | AJ56: =AJ$13 -> 1 | AK56: 1 | AL56: 15 | AM56: 0.017 | AN56: 0 | AO56: 0.9 | AP56: 0.9 | AQ56: 0.85 | AR56: 0.4 | AT56: =AT$13 -> 0.39 | AU56: =AU$13 -> 1 | AV56: 0.74 | AW56: 20 | AX56: 0.02 | AY56: 10 | AZ56: 1 | BA56: 0.85 | BB56: 0.4
A57: 13 | B57: Conc. Solar | C57: na | D57: Molten Salt | E57: Steam turbine | N57: 0.46 | O57: 600 | P57: 0.187 | Q57: 0.9 | R57: 30 | S57: 0.02 | T57: 0 | U57: 0 | V57: 0.85 | W57: 0.2 | Y57: 0 | Z57: 1 | AA57: 1 | AB57: 30 | AC57: 0 | AD57: 0 | AE57: 1 | AF57: 1 | AG57: 0 | AI57: 26000 | AJ57: 1429 | AK57: 0.8 | AL57: 30 | AM57: 0.02 | AN57: 0 | AO57: 1 | AP57: 1 | AQ57: 0.85 | AR57: 0.2 | AT57: 2.4 | AU57: 100 | AV57: 0.7 | AW57: 30 | AX57: 0.02 | AY57: 0 | AZ57: 0.42 | BA57: 0.85 | BB57: 0.2
A58: 14 | B58: Biomass+AD | C58: Digestor | D58: Gas accumulator | E58: Turbine /eng. | N58: 0 | O58: 1 | P58: 1 | Q58: 1 | R58: 20 | S58: 0 | T58: 0 | U58: 0 | V58: 0.85 | W58: 0.05 | Y58: 1.42 | Z58: 7.26 | AA58: 0.7 | AB58: 20 | AC58: 0.065 | AD58: 0 | AE58: 1 | AF58: 0.85 | AG58: 0.05 | AI58: 12391 | AJ58: 11 | AK58: 0.8 | AL58: 20 | AM58: 0.065 | AN58: 0 | AO58: 1 | AP58: 1 | AQ58: 0.85 | AR58: 0.05 | AT58: 0.91 | AU58: 2.5 | AV58: 0.7 | AW58: 20 | AX58: 0.065 | AY58: 0 | AZ58: 0.34 | BA58: 0.85 | BB58: 0.05
A59: 15 | B59: Dry Biomass $5/GJ | C59: na | D59: Depot | E59: Boiler&Turbine | N59: 0 | O59: 1 | P59: 0.5 | Q59: 1 | R59: 25 | S59: 0 | T59: 0 | U59: 18 | V59: 0.85 | W59: 0.05 | Y59: 0 | Z59: 1 | AA59: 1 | AB59: 25 | AC59: 0 | AD59: 0 | AE59: 1 | AF59: 1 | AG59: 0 | AI59: 6.7 | AJ59: 44384 | AK59: 1 | AL59: 25 | AM59: 0.036 | AN59: 0 | AO59: 1 | AP59: 1 | AQ59: 0.85 | AR59: 0 | AT59: 4.89 | AU59: 15 | AV59: 0.7 | AW59: 25 | AX59: 0.036 | AY59: 0 | AZ59: 0.24 | BA59: 0.85 | BB59: 0.05
A60: 16 | B60: Dry Biomass $2.5/GJ | C60: na | D60: Depot | E60: Boiler&Turbine | N60: 0 | O60: 1 | P60: 0.5 | Q60: 1 | R60: 25 | S60: 0 | T60: 0 | U60: 9 | V60: 0.85 | W60: 0.05 | Y60: 0 | Z60: 1 | AA60: 1 | AB60: 25 | AC60: 0 | AD60: 0 | AE60: 1 | AF60: 1 | AG60: 0 | AI60: 6.7 | AJ60: 44384 | AK60: 1 | AL60: 25 | AM60: 0.036 | AN60: 0 | AO60: 1 | AP60: 1 | AQ60: 0.85 | AR60: 0 | AT60: 4.89 | AU60: 15 | AV60: 0.7 | AW60: 25 | AX60: 0.036 | AY60: 0 | AZ60: 0.24 | BA60: 0.85 | BB60: 0.05
A61: =A60+1 -> 17 | B61: HSA Geothermal | C61: na | D61: Self | E61: Turbine | N61: 0 | O61: 50 | P61: 1 | Q61: 1 | R61: 30 | S61: 0.02 | T61: 0 | U61: 0 | V61: 0.85 | W61: 0.05 | Y61: 0 | Z61: 1 | AA61: 1 | AB61: 30 | AC61: 0 | AD61: 0 | AE61: 1 | AF61: 1 | AG61: 0 | AI61: 0 | AJ61: 1 | AK61: 1 | AL61: 30 | AM61: 0 | AN61: 0 | AO61: 1 | AP61: 1 | AQ61: 0.85 | AR61: 0 | AT61: 6.27 | AU61: 50 | AV61: 0.7 | AW61: 30 | AX61: 0.02 | AY61: 0 | AZ61: 0.2 | BA61: 0.85 | BB61: 0.05
A62: 18 | B62: EGS Geothermal | C62: na | D62: Self | E62: Turbine | N62: 0 | O62: 50 | P62: 1 | Q62: 1 | R62: 30 | S62: 0.02 | T62: 0 | U62: 0 | V62: 0.85 | W62: 0.05 | Y62: 0 | Z62: 1 | AA62: 1 | AB62: 30 | AC62: 0 | AD62: 0 | AE62: 1 | AF62: 1 | AG62: 0 | AI62: 0 | AJ62: 1 | AK62: 1 | AL62: 30 | AM62: 0 | AN62: 0 | AO62: 1 | AP62: 1 | AQ62: 0.85 | AR62: 0 | AT62: 14 | AU62: 50 | AV62: 0.8 | AW62: 30 | AX62: 0.02 | AY62: 0 | AZ62: 0.2 | BA62: 0.85 | BB62: 0.05

Sheet InitialSize&CostCalc
B2: Global inputs | K2: Input Cells
B3: =IN_OUT!B3 -> Nameplate capacity | E3: =IN_OUT!F3 -> 100 | F3: =IN_OUT!E3 -> MW | K3: Fixed Cells
B4: =IN_OUT!B4 -> Daily duration of delivery / storage | E4: =IN_OUT!F4 -> 6 | F4: =IN_OUT!E4 -> Hours | K4: Linked Cells | S4: BACK TO INDEX
B5: =IN_OUT!B5 -> Base Year | E5: =IN_OUT!F5 -> 2017 | K5: Calculated Cells
B6: =IN_OUT!B6 -> Target Year | E6: =IN_OUT!F6 -> 2017
B7: =IN_OUT!B7 ->  | E7: =IN_OUT!F7 ->  | F7: =IN_OUT!E7 -> 
N8: Sizing | R8: Energy Capture Inputs (linked) | AA8: Collection cost | AH8: Conversion Inputs (linked) | AQ8: Conversion cost | AX8: Energy Storage Inputs (linked) | BH8: Storage cost | BO8: Conversion Inputs (linked) | BX8: Conversion cost | CB8: Whole system cost
A9: SI No | B9: =TechnologyInputs!B9 -> Energy Capture | C9: =TechnologyInputs!C9 -> Initial energy conversion | D9: =TechnologyInputs!D9 -> Energy Storage | E9: =TechnologyInputs!E9 -> Energy Conversion | G9: Nameplate output | H9: Storage capacity required | I9: Initial conversion capacity required | J9: Base collector capacity required | K9: Actual collector capacity required | M9: =TechnologyInputs!N9 -> Specific Installed cost | N9: =TechnologyInputs!O9 -> baseline capacity | O9: =TechnologyInputs!P9 -> Capture capacity factor | P9: =TechnologyInputs!Q9 -> Power law size exponent | Q9: =TechnologyInputs!R9 -> Life-time | R9: =TechnologyInputs!S9 -> Fixed O&M cost | S9: =TechnologyInputs!T9 -> Variable O&M cost | T9: =TechnologyInputs!V9 -> Cost progress ratio | U9: =TechnologyInputs!W9 -> deployment growth | V9: size scale factor on collectro specific cost | W9: Global Capacity increase factor on collection tech | X9: doubling collection tech | Y9: year scale factor on collector cost | Z9: Collector specific cost scaled | AA9: Collector cost | AB9: =TechnologyInputs!X9 -> 0 | AC9: =TechnologyInputs!Y9 -> Specific Installed cost | AD9: =TechnologyInputs!Z9 -> baseline capacity | AE9: =TechnologyInputs!AA9 -> Power law size exponent | AF9: =TechnologyInputs!AB9 -> Lifetime | AG9: =TechnologyInputs!AC9 -> Fixed O&M cost | AH9: =TechnologyInputs!AD9 -> Variable O&M cost | AI9: =TechnologyInputs!AE9 -> efficiency | AJ9: =TechnologyInputs!AF9 -> Cost progress ratio | AK9: =TechnologyInputs!AG9 -> deployment growth | AL9: size scale factor on initial conversion specific cost | AM9: Global Capacity increase factor on conversion tech | AN9: #doubling conversion tech | AO9: year scale factor on conversion cost | AP9: Conversion specific cost scaled | AQ9: Conversion cost | AS9: =TechnologyInputs!AI9 -> Specific Installed cost _ Energy | AT9: =TechnologyInputs!AJ9 -> baseline capacity | AU9: =TechnologyInputs!AK9 -> Power law size exponent | AV9: =TechnologyInputs!AL9 -> Lifetime | AW9: =TechnologyInputs!AM9 -> Fixed O&M cost | AX9: =TechnologyInputs!AN9 -> Variable O&M cost | AY9: =TechnologyInputs!AO9 -> % average capacity over lifetime | AZ9: =TechnologyInputs!AP9 -> efficiency | BA9: =TechnologyInputs!AQ9 -> Cost progress ratio | BB9: =TechnologyInputs!AR9 -> deployment growth | BC9: size scale factor on storage specific cost | BD9: Global Capacity increase factor on storage tech | BE9: doubling storage tech | BF9: year scale factor on storage cost | BG9: Storage specific cost scaled | BH9: Storage cost | BJ9: =TechnologyInputs!AT9 -> Specific Installed cost | BK9: =TechnologyInputs!AU9 -> baseline capacity | BL9: =TechnologyInputs!AV9 -> Power law size exponent | BM9: =TechnologyInputs!AW9 -> Lifetime | BN9: =TechnologyInputs!AX9 -> Fixed O&M cost | BO9: =TechnologyInputs!AY9 -> Variable O&M cost | BP9: =TechnologyInputs!AZ9 -> efficiency | BQ9: =TechnologyInputs!BA9 -> Cost progress ratio | BR9: =TechnologyInputs!BB9 -> deployment growth | BS9: size scale factor on Final conversion specific cost | BT9: Global Capacity increase factor on conversion tech | BU9: #doubling conversion tech | BV9: year scale factor on conversion cost | BW9: Conversion specific cost scaled | BX9: Conversion cost | BZ9: Total system cost | CA9: Specific system cost
G10: MW | H10: MWh | I10: MW | J10: MW | K10: MW | M10: =TechnologyInputs!N10 -> m$/MW | N10: =TechnologyInputs!O10 -> MW | Q10: =TechnologyInputs!R10 -> year | R10: =TechnologyInputs!S10 -> %/yr | S10: =TechnologyInputs!T10 -> $/MWh | U10: =TechnologyInputs!W10 -> %/yr | Z10: m$/MW | AA10: AUD $ | AC10: =TechnologyInputs!Y10 -> m$/MW | AG10: =TechnologyInputs!AC10 -> %/yr | AH10: =TechnologyInputs!AD10 -> $/MWh | AK10: =TechnologyInputs!AG10 -> %/yr | AP10: m$/MW | AQ10: AUD $ | AS10: =TechnologyInputs!AI10 -> $/MWh | AT10: =TechnologyInputs!AJ10 -> MWh | AV10: =TechnologyInputs!AL10 -> Year | AW10: =TechnologyInputs!AM10 -> %/yr | AX10: =TechnologyInputs!AN10 -> $/MWh | BB10: =TechnologyInputs!AR10 -> %/yr | BG10: $/MWH | BH10: AUD $ | BJ10: =TechnologyInputs!AT10 -> m$/MW | BN10: =TechnologyInputs!AX10 -> %/yr | BO10: =TechnologyInputs!AY10 -> $/MWh | BR10: =TechnologyInputs!BB10 -> %/yr | BW10: m$/MW | BX10: AUD $ | BZ10: AUD $ | CA10: mAUD$/MW
A11: =TechnologyInputs!A11 -> 1 | B11: =TechnologyInputs!B11 -> Utility PV | C11: =TechnologyInputs!C11 -> na | D11: =TechnologyInputs!D11 -> na | E11: =TechnologyInputs!E11 -> na | G11: =$E$3 -> 100 | H11: 0 | I11: =K11 -> 100 | J11: =$E$3/(BP11*AZ11*AI11) -> 100 | K11: =J11*TechnologyInputs!H11 -> 100 | M11: =TechnologyInputs!N11 -> 1.87 | N11: =TechnologyInputs!O11 -> 100 | O11: =TechnologyInputs!P11 -> 0.28 | P11: =TechnologyInputs!Q11 -> 0.89 | Q11: =TechnologyInputs!R11 -> 30 | R11: =TechnologyInputs!S11 -> 0.012 | S11: =TechnologyInputs!T11 -> 0 | T11: =TechnologyInputs!V11 -> 0.85 | U11: =TechnologyInputs!W11 -> 0.2 | V11: =(K11/N11)^(P11-1) -> 1 | W11: =(1+U11)^($E$6-$E$5) -> 1 | X11: =LOG(W11,2) -> 0 | Y11: =T11^X11 -> 1 | Z11: =V11*M11*Y11 -> 1.87 | AA11: =Z11*K11*1000000 -> 187000000 | AC11: =TechnologyInputs!Y11 -> 0 | AD11: =TechnologyInputs!Z11 -> 1 | AE11: =TechnologyInputs!AA11 -> 1 | AF11: =TechnologyInputs!AB11 -> 30 | AG11: =TechnologyInputs!AC11 -> 0 | AH11: =TechnologyInputs!AD11 -> 0 | AI11: =TechnologyInputs!AE11 -> 1 | AJ11: =TechnologyInputs!AF11 -> 1 | AK11: =TechnologyInputs!AG11 -> 0 | AL11: 0 | AM11: 0 | AN11: 0 | AO11: 0 | AP11: 0 | AQ11: 0 | AS11: =TechnologyInputs!AI11 -> 0 | AT11: =TechnologyInputs!AJ11 -> 1 | AU11: =TechnologyInputs!AK11 -> 1 | AV11: =TechnologyInputs!AL11 -> 30 | AW11: =TechnologyInputs!AM11 -> 0 | AX11: =TechnologyInputs!AN11 -> 0 | AY11: =TechnologyInputs!AO11 -> 1 | AZ11: =TechnologyInputs!AP11 -> 1 | BA11: =TechnologyInputs!AQ11 -> 1 | BB11: =TechnologyInputs!AR11 -> 0 | BC11: 0 | BD11: 0 | BE11: 0 | BF11: 0 | BG11: 0 | BH11: 0 | BJ11: =TechnologyInputs!AT11 -> 0 | BK11: =TechnologyInputs!AU11 -> 1 | BL11: =TechnologyInputs!AV11 -> 1 | BM11: =TechnologyInputs!AW11 -> 30 | BN11: =TechnologyInputs!AX11 -> 0 | BO11: =TechnologyInputs!AY11 -> 0 | BP11: =TechnologyInputs!AZ11 -> 1 | BQ11: =TechnologyInputs!BA11 -> 1 | BR11: =TechnologyInputs!BB11 -> 0 | BS11: 0 | BT11: 0 | BU11: 0 | BV11: 0 | BW11: 0 | BX11: 0 | BZ11: =AA11+AQ11+BH11+BX11 -> 187000000 | CA11: =BZ11/(G11*1000000) -> 1.87
A12: =TechnologyInputs!A12 -> 2 | B12: =TechnologyInputs!B12 -> Wind | C12: =TechnologyInputs!C12 -> na | D12: =TechnologyInputs!D12 -> na | E12: =TechnologyInputs!E12 -> na | G12: 100 | H12: 0 | I12: =K12 -> 100 | J12: 100 | K12: =J12*TechnologyInputs!H12 -> 100 | M12: =TechnologyInputs!N12 -> 2.18 | N12: =TechnologyInputs!O12 -> 100 | O12: =TechnologyInputs!P12 -> 0.38 | P12: =TechnologyInputs!Q12 -> 0.9 | Q12: =TechnologyInputs!R12 -> 30 | R12: =TechnologyInputs!S12 -> 0.02 | S12: =TechnologyInputs!T12 -> 0 | T12: =TechnologyInputs!V12 -> 0.85 | U12: =TechnologyInputs!W12 -> 0.1 | V12: =(K12/N12)^(P12-1) -> 1 | W12: =(1+U12)^($E$6-$E$5) -> 1 | X12: =LOG(W12,2) -> 0 | Y12: =T12^X12 -> 1 | Z12: =V12*M12*Y12 -> 2.18 | AA12: =Z12*K12*1000000 -> 218000000 | AC12: =TechnologyInputs!Y12 -> 0 | AD12: =TechnologyInputs!Z12 -> 1 | AE12: =TechnologyInputs!AA12 -> 1 | AF12: =TechnologyInputs!AB12 -> 30 | AG12: =TechnologyInputs!AC12 -> 0 | AH12: =TechnologyInputs!AD12 -> 0 | AI12: =TechnologyInputs!AE12 -> 1 | AJ12: =TechnologyInputs!AF12 -> 1 | AK12: =TechnologyInputs!AG12 -> 0 | AL12: 0 | AM12: 0 | AN12: 0 | AO12: 0 | AP12: 0 | AQ12: 0 | AS12: =TechnologyInputs!AI12 -> 0 | AT12: =TechnologyInputs!AJ12 -> 1 | AU12: =TechnologyInputs!AK12 -> 1 | AV12: =TechnologyInputs!AL12 -> 30 | AW12: =TechnologyInputs!AM12 -> 0 | AX12: =TechnologyInputs!AN12 -> 0 | AY12: =TechnologyInputs!AO12 -> 1 | AZ12: =TechnologyInputs!AP12 -> 1 | BA12: =TechnologyInputs!AQ12 -> 1 | BB12: =TechnologyInputs!AR12 -> 0 | BC12: 0 | BD12: 0 | BE12: 0 | BF12: 0 | BG12: 0 | BH12: 0 | BJ12: =TechnologyInputs!AT12 -> 0 | BK12: =TechnologyInputs!AU12 -> 1 | BL12: =TechnologyInputs!AV12 -> 1 | BM12: =TechnologyInputs!AW12 -> 30 | BN12: =TechnologyInputs!AX12 -> 0 | BO12: =TechnologyInputs!AY12 -> 0 | BP12: =TechnologyInputs!AZ12 -> 1 | BQ12: =TechnologyInputs!BA12 -> 1 | BR12: =TechnologyInputs!BB12 -> 0 | BS12: 0 | BT12: 0 | BU12: 0 | BV12: 0 | BW12: 0 | BX12: 0 | BZ12: =AA12+AQ12+BH12+BX12 -> 218000000 | CA12: 2.18
A13: =TechnologyInputs!A13 -> 3 | B13: =TechnologyInputs!B13 -> Utility PV | C13: =TechnologyInputs!C13 -> na | D13: =TechnologyInputs!D13 -> Batteries | E13: =TechnologyInputs!E13 -> Inverter | G13: 100 | H13: =$E$3*$E$4/(BP13*AY13) -> 666.6666667 | I13: 111.1111111 | J13: 111.1111111 | K13: =J13*TechnologyInputs!H13 -> 111.1111111 | M13: =TechnologyInputs!N13 -> 1.87 | N13: =TechnologyInputs!O13 -> 100 | O13: =TechnologyInputs!P13 -> 0.28 | P13: =TechnologyInputs!Q13 -> 0.89 | Q13: =TechnologyInputs!R13 -> 30 | R13: =TechnologyInputs!S13 -> 0.012 | S13: =TechnologyInputs!T13 -> 0 | T13: =TechnologyInputs!V13 -> 0.85 | U13: =TechnologyInputs!W13 -> 0.3 | V13: 0.9884772446 | W13: 1 | X13: 0 | Y13: 1 | Z13: 1.848452447 | AA13: 205383605.3 | AC13: =TechnologyInputs!Y13 -> 0 | AD13: =TechnologyInputs!Z13 -> 1 | AE13: =TechnologyInputs!AA13 -> 1 | AF13: =TechnologyInputs!AB13 -> 30 | AG13: =TechnologyInputs!AC13 -> 0 | AH13: =TechnologyInputs!AD13 -> 0 | AI13: =TechnologyInputs!AE13 -> 1 | AJ13: =TechnologyInputs!AF13 -> 1 | AK13: =TechnologyInputs!AG13 -> 0 | AL13: =(K13/AD13)^(AE13-1) -> 1 | AM13: =(1+AK13)^($E$6-$E$5) -> 1 | AN13: =LOG(AM13,2) -> 0 | AO13: =AJ13^AN13 -> 1 | AP13: =AL13*AC13*AO13 -> 0 | AQ13: =AP13*K13*1000000 -> 0 | AS13: =TechnologyInputs!AI13 -> 687735 | AT13: =TechnologyInputs!AJ13 -> 1 | AU13: =TechnologyInputs!AK13 -> 1 | AV13: =TechnologyInputs!AL13 -> 15 | AW13: =TechnologyInputs!AM13 -> 0.017 | AX13: =TechnologyInputs!AN13 -> 0 | AY13: =TechnologyInputs!AO13 -> 0.9 | AZ13: =TechnologyInputs!AP13 -> 0.9 | BA13: =TechnologyInputs!AQ13 -> 0.85 | BB13: =TechnologyInputs!AR13 -> 0.4 | BC13: =(H13/AT13)^(AU13-1) -> 1 | BD13: =(1+BB13)^($E$6-$E$5) -> 1 | BE13: =LOG(BD13,2) -> 0 | BF13: =BA13^BE13 -> 1 | BG13: =BC13*AS13*BF13 -> 687735 | BH13: =BG13*H13 -> 458490000 | BJ13: =TechnologyInputs!AT13 -> 0.39 | BK13: =TechnologyInputs!AU13 -> 1 | BL13: =TechnologyInputs!AV13 -> 0.74 | BM13: =TechnologyInputs!AW13 -> 20 | BN13: =TechnologyInputs!AX13 -> 0.02 | BO13: =TechnologyInputs!AY13 -> 10 | BP13: =TechnologyInputs!AZ13 -> 1 | BQ13: =TechnologyInputs!BA13 -> 0.85 | BR13: =TechnologyInputs!BB13 -> 0.4 | BS13: =(G13/BK13)^(BL13-1) -> 0.301995172 | BT13: =(1+BR13)^($E$6-$E$5) -> 1 | BU13: =LOG(BT13,2) -> 0 | BV13: =BQ13^BU13 -> 1 | BW13: =BS13*BJ13*BV13 -> 0.1177781171 | BX13: =BW13*G13*1000000 -> 11777811.71 | BZ13: =AA13+AQ13+BH13+BX13 -> 675651417 | CA13: 6.75651417
A14: =TechnologyInputs!A14 -> 4 | B14: =TechnologyInputs!B14 -> Utility PV | C14: =TechnologyInputs!C14 -> na | D14: =TechnologyInputs!D14 -> Hydro Dam | E14: =TechnologyInputs!E14 -> Hydro turbine | G14: 100 | H14: 750 | I14: 125 | J14: 125 | K14: =J14*TechnologyInputs!H14 -> 125 | M14: =TechnologyInputs!N14 -> 1.87 | N14: =TechnologyInputs!O14 -> 100 | O14: =TechnologyInputs!P14 -> 0.28 | P14: =TechnologyInputs!Q14 -> 0.89 | Q14: =TechnologyInputs!R14 -> 30 | R14: =TechnologyInputs!S14 -> 0.012 | S14: =TechnologyInputs!T14 -> 0 | T14: =TechnologyInputs!V14 -> 0.85 | U14: =TechnologyInputs!W14 -> 0.3 | V14: 0.9757530075 | W14: 1 | X14: 0 | Y14: 1 | Z14: 1.824658124 | AA14: 228082265.5 | AC14: =TechnologyInputs!Y14 -> 0 | AD14: =TechnologyInputs!Z14 -> 1 | AE14: =TechnologyInputs!AA14 -> 1 | AF14: =TechnologyInputs!AB14 -> 30 | AG14: =TechnologyInputs!AC14 -> 0 | AH14: =TechnologyInputs!AD14 -> 0 | AI14: =TechnologyInputs!AE14 -> 1 | AJ14: =TechnologyInputs!AF14 -> 1 | AK14: =TechnologyInputs!AG14 -> 0 | AL14: =(K14/AD14)^(AE14-1) -> 1 | AM14: 1 | AN14: =LOG(AM14,2) -> 0 | AO14: 1 | AP14: 0 | AQ14: =AP14*K14*1000000 -> 0 | AS14: =TechnologyInputs!AI14 -> 37000 | AT14: =TechnologyInputs!AJ14 -> 1200 | AU14: =TechnologyInputs!AK14 -> 0.7 | AV14: =TechnologyInputs!AL14 -> 30 | AW14: =TechnologyInputs!AM14 -> 0.02 | AX14: =TechnologyInputs!AN14 -> 0 | AY14: =TechnologyInputs!AO14 -> 1 | AZ14: =TechnologyInputs!AP14 -> 1 | BA14: =TechnologyInputs!AQ14 -> 0.85 | BB14: =TechnologyInputs!AR14 -> 0.05 | BC14: 1.151425902 | BD14: 1 | BE14: =LOG(BD14,2) -> 0 | BF14: =BA14^BE14 -> 1 | BG14: =BC14*AS14*BF14 -> 42602.75836 | BH14: 31952068.77 | BJ14: =TechnologyInputs!AT14 -> 1.5 | BK14: =TechnologyInputs!AU14 -> 200 | BL14: =TechnologyInputs!AV14 -> 0.7 | BM14: =TechnologyInputs!AW14 -> 30 | BN14: =TechnologyInputs!AX14 -> 0.02 | BO14: =TechnologyInputs!AY14 -> 0 | BP14: =TechnologyInputs!AZ14 -> 0.8 | BQ14: =TechnologyInputs!BA14 -> 0.85 | BR14: =TechnologyInputs!BB14 -> 0.05 | BS14: 1.231144413 | BT14: =(1+BR14)^($E$6-$E$5) -> 1 | BU14: =LOG(BT14,2) -> 0 | BV14: =BQ14^BU14 -> 1 | BW14: =BS14*BJ14*BV14 -> 1.84671662 | BX14: 184671662 | BZ14: =AA14+AQ14+BH14+BX14 -> 444705996.3 | CA14: 4.447059963
A15: =TechnologyInputs!A15 -> 5 | B15: =TechnologyInputs!B15 -> Utility PV | C15: =TechnologyInputs!C15 -> Electrolyser | D15: =TechnologyInputs!D15 -> Hydrogen | E15: =TechnologyInputs!E15 -> Fuel cell / GT | G15: 100 | H15: 1052.631579 | I15: 299.8950367 | J15: =$E$3/(BP15*AZ15*AI15) -> 299.8950367 | K15: =J15*TechnologyInputs!H15 -> 299.8950367 | M15: =TechnologyInputs!N15 -> 1.87 | N15: =TechnologyInputs!O15 -> 100 | O15: =TechnologyInputs!P15 -> 0.28 | P15: =TechnologyInputs!Q15 -> 0.89 | Q15: =TechnologyInputs!R15 -> 30 | R15: =TechnologyInputs!S15 -> 0.012 | S15: =TechnologyInputs!T15 -> 0 | T15: =TechnologyInputs!V15 -> 0.85 | U15: =TechnologyInputs!W15 -> 0.3 | V15: 0.8862033336 | W15: 1 | X15: 0 | Y15: 1 | Z15: 1.657200234 | AA15: 496986125 | AC15: =TechnologyInputs!Y15 -> 1.09 | AD15: =TechnologyInputs!Z15 -> 20 | AE15: =TechnologyInputs!AA15 -> 0.7 | AF15: =TechnologyInputs!AB15 -> 15 | AG15: =TechnologyInputs!AC15 -> 0.02 | AH15: =TechnologyInputs!AD15 -> 0 | AI15: =TechnologyInputs!AE15 -> 0.65 | AJ15: =TechnologyInputs!AF15 -> 0.85 | AK15: =TechnologyInputs!AG15 -> 0.2 | AL15: 0.4438315951 | AM15: 1 | AN15: 0 | AO15: 1 | AP15: 0.4837764387 | AQ15: 145082152.9 | AS15: =TechnologyInputs!AI15 -> 655 | AT15: =TechnologyInputs!AJ15 -> 20000 | AU15: =TechnologyInputs!AK15 -> 0.7 | AV15: =TechnologyInputs!AL15 -> 30 | AW15: =TechnologyInputs!AM15 -> 0.05 | AX15: =TechnologyInputs!AN15 -> 0 | AY15: =TechnologyInputs!AO15 -> 1 | AZ15: =TechnologyInputs!AP15 -> 0.9 | BA15: =TechnologyInputs!AQ15 -> 0.85 | BB15: =TechnologyInputs!AR15 -> 0.2 | BC15: 2.418945481 | BD15: 1 | BE15: 0 | BF15: 1 | BG15: 1584.40929 | BH15: 1667799.253 | BJ15: =TechnologyInputs!AT15 -> 1.64 | BK15: =TechnologyInputs!AU15 -> 20 | BL15: =TechnologyInputs!AV15 -> 0.7 | BM15: =TechnologyInputs!AW15 -> 30 | BN15: =TechnologyInputs!AX15 -> 0.03 | BO15: =TechnologyInputs!AY15 -> 0 | BP15: =TechnologyInputs!AZ15 -> 0.57 | BQ15: =TechnologyInputs!BA15 -> 0.85 | BR15: =TechnologyInputs!BB15 -> 0.2 | BS15: 0.6170338627 | BT15: 1 | BU15: 0 | BV15: 1 | BW15: 1.011935535 | BX15: 101193553.5 | BZ15: 744929630.6 | CA15: 7.449296306
A16: =TechnologyInputs!A16 -> 6 | B16: =TechnologyInputs!B16 -> Wind | C16: =TechnologyInputs!C16 -> na | D16: =TechnologyInputs!D16 -> Batteries | E16: =TechnologyInputs!E16 -> Inverter | G16: 100 | H16: 666.6666667 | I16: 111.1111111 | J16: 111.1111111 | K16: =J16*TechnologyInputs!H16 -> 111.1111111 | M16: =TechnologyInputs!N16 -> 2.18 | N16: =TechnologyInputs!O16 -> 100 | O16: =TechnologyInputs!P16 -> 0.38 | P16: =TechnologyInputs!Q16 -> 0.9 | Q16: =TechnologyInputs!R16 -> 30 | R16: =TechnologyInputs!S16 -> 0.02 | S16: =TechnologyInputs!T16 -> 0 | T16: =TechnologyInputs!V16 -> 0.85 | U16: =TechnologyInputs!W16 -> 0.1 | V16: 0.9895192582 | W16: 1 | X16: 0 | Y16: 1 | Z16: 2.157151983 | AA16: 239683553.7 | AC16: =TechnologyInputs!Y16 -> 0 | AD16: =TechnologyInputs!Z16 -> 1 | AE16: =TechnologyInputs!AA16 -> 1 | AF16: =TechnologyInputs!AB16 -> 30 | AG16: =TechnologyInputs!AC16 -> 0 | AH16: =TechnologyInputs!AD16 -> 0 | AI16: =TechnologyInputs!AE16 -> 1 | AJ16: =TechnologyInputs!AF16 -> 1 | AK16: =TechnologyInputs!AG16 -> 0 | AL16: 1 | AM16: 1 | AN16: 0 | AO16: 1 | AP16: 0 | AQ16: 0 | AS16: =TechnologyInputs!AI16 -> 687735 | AT16: =TechnologyInputs!AJ16 -> 1 | AU16: =TechnologyInputs!AK16 -> 1 | AV16: =TechnologyInputs!AL16 -> 15 | AW16: =TechnologyInputs!AM16 -> 0.017 | AX16: =TechnologyInputs!AN16 -> 0 | AY16: =TechnologyInputs!AO16 -> 0.9 | AZ16: =TechnologyInputs!AP16 -> 0.9 | BA16: =TechnologyInputs!AQ16 -> 0.85 | BB16: =TechnologyInputs!AR16 -> 0.4 | BC16: 1 | BD16: 1 | BE16: 0 | BF16: 1 | BG16: 687735 | BH16: 458490000 | BJ16: =TechnologyInputs!AT16 -> 0.39 | BK16: =TechnologyInputs!AU16 -> 1 | BL16: =TechnologyInputs!AV16 -> 0.74 | BM16: =TechnologyInputs!AW16 -> 20 | BN16: =TechnologyInputs!AX16 -> 0.02 | BO16: =TechnologyInputs!AY16 -> 10 | BP16: =TechnologyInputs!AZ16 -> 1 | BQ16: =TechnologyInputs!BA16 -> 0.85 | BR16: =TechnologyInputs!BB16 -> 0.4 | BS16: 0.301995172 | BT16: 1 | BU16: 0 | BV16: 1 | BW16: 0.1177781171 | BX16: 11777811.71 | BZ16: 709951365.4 | CA16: 7.099513654
A17: =TechnologyInputs!A17 -> 7 | B17: =TechnologyInputs!B17 -> Wind | C17: =TechnologyInputs!C17 -> na | D17: =TechnologyInputs!D17 -> Hydro Dam | E17: =TechnologyInputs!E17 -> Hydro turbine | G17: 100 | H17: 750 | I17: 125 | J17: 125 | K17: =J17*TechnologyInputs!H17 -> 125 | M17: =TechnologyInputs!N17 -> 2.18 | N17: =TechnologyInputs!O17 -> 100 | O17: =TechnologyInputs!P17 -> 0.38 | P17: =TechnologyInputs!Q17 -> 0.9 | Q17: =TechnologyInputs!R17 -> 30 | R17: =TechnologyInputs!S17 -> 0.02 | S17: =TechnologyInputs!T17 -> 0 | T17: =TechnologyInputs!V17 -> 0.85 | U17: =TechnologyInputs!W17 -> 0.1 | V17: 0.9779327685 | W17: 1 | X17: 0 | Y17: 1 | Z17: 2.131893435 | AA17: 266486679.4 | AC17: =TechnologyInputs!Y17 -> 0 | AD17: =TechnologyInputs!Z17 -> 1 | AE17: =TechnologyInputs!AA17 -> 1 | AF17: =TechnologyInputs!AB17 -> 30 | AG17: =TechnologyInputs!AC17 -> 0 | AH17: =TechnologyInputs!AD17 -> 0 | AI17: =TechnologyInputs!AE17 -> 1 | AJ17: =TechnologyInputs!AF17 -> 1 | AK17: =TechnologyInputs!AG17 -> 0 | AL17: 1 | AM17: 1 | AN17: 0 | AO17: 1 | AP17: 0 | AQ17: 0 | AS17: =TechnologyInputs!AI17 -> 37000 | AT17: =TechnologyInputs!AJ17 -> 1200 | AU17: =TechnologyInputs!AK17 -> 0.7 | AV17: =TechnologyInputs!AL17 -> 30 | AW17: =TechnologyInputs!AM17 -> 0.02 | AX17: =TechnologyInputs!AN17 -> 0 | AY17: =TechnologyInputs!AO17 -> 1 | AZ17: =TechnologyInputs!AP17 -> 1 | BA17: =TechnologyInputs!AQ17 -> 0.85 | BB17: =TechnologyInputs!AR17 -> 0.05 | BC17: 1.151425902 | BD17: 1 | BE17: 0 | BF17: 1 | BG17: 42602.75836 | BH17: 31952068.77 | BJ17: =TechnologyInputs!AT17 -> 1.5 | BK17: =TechnologyInputs!AU17 -> 200 | BL17: =TechnologyInputs!AV17 -> 0.7 | BM17: =TechnologyInputs!AW17 -> 30 | BN17: =TechnologyInputs!AX17 -> 0.02 | BO17: =TechnologyInputs!AY17 -> 0 | BP17: =TechnologyInputs!AZ17 -> 0.8 | BQ17: =TechnologyInputs!BA17 -> 0.85 | BR17: =TechnologyInputs!BB17 -> 0.05 | BS17: 1.231144413 | BT17: 1 | BU17: 0 | BV17: 1 | BW17: 1.84671662 | BX17: 184671662 | BZ17: 483110410.2 | CA17: 4.831104102
A18: =TechnologyInputs!A18 -> 8 | B18: =TechnologyInputs!B18 -> Wind | C18: =TechnologyInputs!C18 -> Electrolyser | D18: =TechnologyInputs!D18 -> Cavern | E18: =TechnologyInputs!E18 -> Fuel cell / GT | G18: 100 | H18: 1052.631579 | I18: 299.8950367 | J18: 299.8950367 | K18: =J18*TechnologyInputs!H18 -> 299.8950367 | M18: =TechnologyInputs!N18 -> 2.18 | N18: =TechnologyInputs!O18 -> 100 | O18: =TechnologyInputs!P18 -> 0.38 | P18: =TechnologyInputs!Q18 -> 0.9 | Q18: =TechnologyInputs!R18 -> 30 | R18: =TechnologyInputs!S18 -> 0.02 | S18: =TechnologyInputs!T18 -> 0 | T18: =TechnologyInputs!V18 -> 0.85 | U18: =TechnologyInputs!W18 -> 0.1 | V18: 0.8959898134 | W18: 1 | X18: 0 | Y18: 1 | Z18: 1.953257793 | AA18: 585772317.7 | AC18: =TechnologyInputs!Y18 -> 1.09 | AD18: =TechnologyInputs!Z18 -> 20 | AE18: =TechnologyInputs!AA18 -> 0.7 | AF18: =TechnologyInputs!AB18 -> 15 | AG18: =TechnologyInputs!AC18 -> 0.02 | AH18: =TechnologyInputs!AD18 -> 0 | AI18: =TechnologyInputs!AE18 -> 0.65 | AJ18: =TechnologyInputs!AF18 -> 0.85 | AK18: =TechnologyInputs!AG18 -> 0.2 | AL18: 0.4438315951 | AM18: 1 | AN18: 0 | AO18: 1 | AP18: 0.4837764387 | AQ18: 145082152.9 | AS18: =TechnologyInputs!AI18 -> 655 | AT18: =TechnologyInputs!AJ18 -> 20000 | AU18: =TechnologyInputs!AK18 -> 0.7 | AV18: =TechnologyInputs!AL18 -> 30 | AW18: =TechnologyInputs!AM18 -> 0.05 | AX18: =TechnologyInputs!AN18 -> 0 | AY18: =TechnologyInputs!AO18 -> 1 | AZ18: =TechnologyInputs!AP18 -> 0.9 | BA18: =TechnologyInputs!AQ18 -> 0.85 | BB18: =TechnologyInputs!AR18 -> 0.2 | BC18: 2.418945481 | BD18: 1 | BE18: 0 | BF18: 1 | BG18: 1584.40929 | BH18: 1667799.253 | BJ18: =TechnologyInputs!AT18 -> 1.64 | BK18: =TechnologyInputs!AU18 -> 20 | BL18: =TechnologyInputs!AV18 -> 0.7 | BM18: =TechnologyInputs!AW18 -> 30 | BN18: =TechnologyInputs!AX18 -> 0.03 | BO18: =TechnologyInputs!AY18 -> 0 | BP18: =TechnologyInputs!AZ18 -> 0.57 | BQ18: =TechnologyInputs!BA18 -> 0.85 | BR18: =TechnologyInputs!BB18 -> 0.2 | BS18: 0.6170338627 | BT18: 1 | BU18: 0 | BV18: 1 | BW18: 1.011935535 | BX18: 101193553.5 | BZ18: 833715823.3 | CA18: 8.337158233
A19: =TechnologyInputs!A19 -> 9 | B19: =TechnologyInputs!B19 -> Grid VRE | C19: =TechnologyInputs!C19 -> na | D19: =TechnologyInputs!D19 -> Batteries | E19: =TechnologyInputs!E19 -> Inverter | G19: 100 | H19: 666.6666667 | I19: 111.1111111 | J19: 111.1111111 | K19: =J19*TechnologyInputs!H19 -> 111.1111111 | M19: =TechnologyInputs!N19 -> 0 | N19: =TechnologyInputs!O19 -> 1 | O19: =TechnologyInputs!P19 -> 0.8 | P19: =TechnologyInputs!Q19 -> 1 | Q19: =TechnologyInputs!R19 -> 30 | R19: =TechnologyInputs!S19 -> 0 | S19: =TechnologyInputs!T19 -> 0 | T19: =TechnologyInputs!V19 -> 0.85 | U19: =TechnologyInputs!W19 -> 0.3 | V19: 1 | W19: 1 | X19: 0 | Y19: 1 | Z19: 0 | AA19: 0 | AC19: =TechnologyInputs!Y19 -> 0 | AD19: =TechnologyInputs!Z19 -> 1 | AE19: =TechnologyInputs!AA19 -> 1 | AF19: =TechnologyInputs!AB19 -> 30 | AG19: =TechnologyInputs!AC19 -> 0 | AH19: =TechnologyInputs!AD19 -> 0 | AI19: =TechnologyInputs!AE19 -> 1 | AJ19: =TechnologyInputs!AF19 -> 1 | AK19: =TechnologyInputs!AG19 -> 0 | AL19: 1 | AM19: 1 | AN19: 0 | AO19: 1 | AP19: 0 | AQ19: 0 | AS19: =TechnologyInputs!AI19 -> 687735 | AT19: =TechnologyInputs!AJ19 -> 1 | AU19: =TechnologyInputs!AK19 -> 1 | AV19: =TechnologyInputs!AL19 -> 15 | AW19: =TechnologyInputs!AM19 -> 0.017 | AX19: =TechnologyInputs!AN19 -> 0 | AY19: =TechnologyInputs!AO19 -> 0.9 | AZ19: =TechnologyInputs!AP19 -> 0.9 | BA19: =TechnologyInputs!AQ19 -> 0.85 | BB19: =TechnologyInputs!AR19 -> 0.4 | BC19: 1 | BD19: 1 | BE19: 0 | BF19: 1 | BG19: 687735 | BH19: 458490000 | BJ19: =TechnologyInputs!AT19 -> 0.39 | BK19: =TechnologyInputs!AU19 -> 1 | BL19: =TechnologyInputs!AV19 -> 0.74 | BM19: =TechnologyInputs!AW19 -> 20 | BN19: =TechnologyInputs!AX19 -> 0.02 | BO19: =TechnologyInputs!AY19 -> 10 | BP19: =TechnologyInputs!AZ19 -> 1 | BQ19: =TechnologyInputs!BA19 -> 0.85 | BR19: =TechnologyInputs!BB19 -> 0.4 | BS19: 0.301995172 | BT19: 1 | BU19: 0 | BV19: 1 | BW19: 0.1177781171 | BX19: 11777811.71 | BZ19: 470267811.7 | CA19: 4.702678117
A20: =TechnologyInputs!A20 -> 10 | B20: =TechnologyInputs!B20 -> Grid VRE | C20: =TechnologyInputs!C20 -> na | D20: =TechnologyInputs!D20 -> Hydro Dam | E20: =TechnologyInputs!E20 -> Hydro turbine | G20: 100 | H20: 750 | I20: 125 | J20: 125 | K20: =J20*TechnologyInputs!H20 -> 125 | M20: =TechnologyInputs!N20 -> 0 | N20: =TechnologyInputs!O20 -> 1 | O20: =TechnologyInputs!P20 -> 0.8 | P20: =TechnologyInputs!Q20 -> 1 | Q20: =TechnologyInputs!R20 -> 30 | R20: =TechnologyInputs!S20 -> 0 | S20: =TechnologyInputs!T20 -> 0 | T20: =TechnologyInputs!V20 -> 0.85 | U20: =TechnologyInputs!W20 -> 0.3 | V20: 1 | W20: 1 | X20: 0 | Y20: 1 | Z20: 0 | AA20: 0 | AC20: =TechnologyInputs!Y20 -> 0 | AD20: =TechnologyInputs!Z20 -> 1 | AE20: =TechnologyInputs!AA20 -> 1 | AF20: =TechnologyInputs!AB20 -> 30 | AG20: =TechnologyInputs!AC20 -> 0 | AH20: =TechnologyInputs!AD20 -> 0 | AI20: =TechnologyInputs!AE20 -> 1 | AJ20: =TechnologyInputs!AF20 -> 1 | AK20: =TechnologyInputs!AG20 -> 0 | AL20: 1 | AM20: 1 | AN20: 0 | AO20: 1 | AP20: 0 | AQ20: 0 | AS20: =TechnologyInputs!AI20 -> 37000 | AT20: =TechnologyInputs!AJ20 -> 1200 | AU20: =TechnologyInputs!AK20 -> 0.7 | AV20: =TechnologyInputs!AL20 -> 30 | AW20: =TechnologyInputs!AM20 -> 0.02 | AX20: =TechnologyInputs!AN20 -> 0 | AY20: =TechnologyInputs!AO20 -> 1 | AZ20: =TechnologyInputs!AP20 -> 1 | BA20: =TechnologyInputs!AQ20 -> 0.85 | BB20: =TechnologyInputs!AR20 -> 0.05 | BC20: 1.151425902 | BD20: 1 | BE20: 0 | BF20: 1 | BG20: 42602.75836 | BH20: 31952068.77 | BJ20: =TechnologyInputs!AT20 -> 1.5 | BK20: =TechnologyInputs!AU20 -> 200 | BL20: =TechnologyInputs!AV20 -> 0.7 | BM20: =TechnologyInputs!AW20 -> 30 | BN20: =TechnologyInputs!AX20 -> 0.02 | BO20: =TechnologyInputs!AY20 -> 0 | BP20: =TechnologyInputs!AZ20 -> 0.8 | BQ20: =TechnologyInputs!BA20 -> 0.85 | BR20: =TechnologyInputs!BB20 -> 0.05 | BS20: 1.231144413 | BT20: 1 | BU20: 0 | BV20: 1 | BW20: 1.84671662 | BX20: 184671662 | BZ20: 216623730.8 | CA20: 2.166237308
A21: =TechnologyInputs!A21 -> 11 | B21: =TechnologyInputs!B21 -> Grid VRE | C21: =TechnologyInputs!C21 -> Electrolyser | D21: =TechnologyInputs!D21 -> Hydrogen | E21: =TechnologyInputs!E21 -> Fuel cell / GT | G21: 100 | H21: 1052.631579 | I21: 299.8950367 | J21: 299.8950367 | K21: =J21*TechnologyInputs!H21 -> 299.8950367 | M21: =TechnologyInputs!N21 -> 0 | N21: =TechnologyInputs!O21 -> 1 | O21: =TechnologyInputs!P21 -> 0.8 | P21: =TechnologyInputs!Q21 -> 1 | Q21: =TechnologyInputs!R21 -> 30 | R21: =TechnologyInputs!S21 -> 0 | S21: =TechnologyInputs!T21 -> 0 | T21: =TechnologyInputs!V21 -> 0.85 | U21: =TechnologyInputs!W21 -> 0.3 | V21: 1 | W21: 1 | X21: 0 | Y21: 1 | Z21: 0 | AA21: 0 | AC21: =TechnologyInputs!Y21 -> 1.09 | AD21: =TechnologyInputs!Z21 -> 20 | AE21: =TechnologyInputs!AA21 -> 0.7 | AF21: =TechnologyInputs!AB21 -> 15 | AG21: =TechnologyInputs!AC21 -> 0.02 | AH21: =TechnologyInputs!AD21 -> 0 | AI21: =TechnologyInputs!AE21 -> 0.65 | AJ21: =TechnologyInputs!AF21 -> 0.85 | AK21: =TechnologyInputs!AG21 -> 0.2 | AL21: 0.4438315951 | AM21: 1 | AN21: 0 | AO21: 1 | AP21: 0.4837764387 | AQ21: 145082152.9 | AS21: =TechnologyInputs!AI21 -> 655 | AT21: =TechnologyInputs!AJ21 -> 20000 | AU21: =TechnologyInputs!AK21 -> 0.7 | AV21: =TechnologyInputs!AL21 -> 30 | AW21: =TechnologyInputs!AM21 -> 0.05 | AX21: =TechnologyInputs!AN21 -> 0 | AY21: =TechnologyInputs!AO21 -> 1 | AZ21: =TechnologyInputs!AP21 -> 0.9 | BA21: =TechnologyInputs!AQ21 -> 0.85 | BB21: =TechnologyInputs!AR21 -> 0.2 | BC21: 2.418945481 | BD21: 1 | BE21: 0 | BF21: 1 | BG21: 1584.40929 | BH21: 1667799.253 | BJ21: =TechnologyInputs!AT21 -> 1.64 | BK21: =TechnologyInputs!AU21 -> 20 | BL21: =TechnologyInputs!AV21 -> 0.7 | BM21: =TechnologyInputs!AW21 -> 30 | BN21: =TechnologyInputs!AX21 -> 0.03 | BO21: =TechnologyInputs!AY21 -> 0 | BP21: =TechnologyInputs!AZ21 -> 0.57 | BQ21: =TechnologyInputs!BA21 -> 0.85 | BR21: =TechnologyInputs!BB21 -> 0.2 | BS21: 0.6170338627 | BT21: 1 | BU21: 0 | BV21: 1 | BW21: 1.011935535 | BX21: 101193553.5 | BZ21: 247943505.6 | CA21: 2.479435056
A22: =TechnologyInputs!A22 -> 12 | B22: =TechnologyInputs!B22 -> Rooftop PV | C22: =TechnologyInputs!C22 -> na | D22: =TechnologyInputs!D22 -> Batteries | E22: =TechnologyInputs!E22 -> Inverter | G22: 100 | H22: 666.6666667 | I22: 111.1111111 | J22: 111.1111111 | K22: =J22*TechnologyInputs!H22 -> 111.1111111 | M22: =TechnologyInputs!N22 -> 2 | N22: =TechnologyInputs!O22 -> 0.005 | O22: =TechnologyInputs!P22 -> 0.17 | P22: =TechnologyInputs!Q22 -> 1 | Q22: =TechnologyInputs!R22 -> 25 | R22: =TechnologyInputs!S22 -> 0.02 | S22: =TechnologyInputs!T22 -> 0 | T22: =TechnologyInputs!V22 -> 0.85 | U22: =TechnologyInputs!W22 -> 0.3 | V22: 1 | W22: 1 | X22: 0 | Y22: 1 | Z22: 2 | AA22: 222222222.2 | AC22: =TechnologyInputs!Y22 -> 0 | AD22: =TechnologyInputs!Z22 -> 1 | AE22: =TechnologyInputs!AA22 -> 1 | AF22: =TechnologyInputs!AB22 -> 30 | AG22: =TechnologyInputs!AC22 -> 0 | AH22: =TechnologyInputs!AD22 -> 0 | AI22: =TechnologyInputs!AE22 -> 1 | AJ22: =TechnologyInputs!AF22 -> 1 | AK22: =TechnologyInputs!AG22 -> 0 | AL22: 1 | AM22: 1 | AN22: 0 | AO22: 1 | AP22: 0 | AQ22: 0 | AS22: =TechnologyInputs!AI22 -> 687735 | AT22: =TechnologyInputs!AJ22 -> 1 | AU22: =TechnologyInputs!AK22 -> 1 | AV22: =TechnologyInputs!AL22 -> 15 | AW22: =TechnologyInputs!AM22 -> 0.017 | AX22: =TechnologyInputs!AN22 -> 0 | AY22: =TechnologyInputs!AO22 -> 0.9 | AZ22: =TechnologyInputs!AP22 -> 0.9 | BA22: =TechnologyInputs!AQ22 -> 0.85 | BB22: =TechnologyInputs!AR22 -> 0.4 | BC22: 1 | BD22: 1 | BE22: 0 | BF22: 1 | BG22: 687735 | BH22: 458490000 | BJ22: =TechnologyInputs!AT22 -> 0.39 | BK22: =TechnologyInputs!AU22 -> 1 | BL22: =TechnologyInputs!AV22 -> 0.74 | BM22: =TechnologyInputs!AW22 -> 20 | BN22: =TechnologyInputs!AX22 -> 0.02 | BO22: =TechnologyInputs!AY22 -> 10 | BP22: =TechnologyInputs!AZ22 -> 1 | BQ22: =TechnologyInputs!BA22 -> 0.85 | BR22: =TechnologyInputs!BB22 -> 0.4 | BS22: 0.301995172 | BT22: 1 | BU22: 0 | BV22: 1 | BW22: 0.1177781171 | BX22: 11777811.71 | BZ22: 692490033.9 | CA22: 6.924900339
A23: =TechnologyInputs!A23 -> 13 | B23: =TechnologyInputs!B23 -> Conc. Solar | C23: =TechnologyInputs!C23 -> na | D23: =TechnologyInputs!D23 -> Molten Salt | E23: =TechnologyInputs!E23 -> Steam turbine | G23: 100 | H23: 1428.571429 | I23: 238.0952381 | J23: 238.0952381 | K23: =J23*TechnologyInputs!H23 -> 238.0952381 | M23: =TechnologyInputs!N23 -> 0.46 | N23: =TechnologyInputs!O23 -> 600 | O23: =TechnologyInputs!P23 -> 0.187 | P23: =TechnologyInputs!Q23 -> 0.9 | Q23: =TechnologyInputs!R23 -> 30 | R23: =TechnologyInputs!S23 -> 0.02 | S23: =TechnologyInputs!T23 -> 0 | T23: =TechnologyInputs!V23 -> 0.85 | U23: =TechnologyInputs!W23 -> 0.2 | V23: 1.096831853 | W23: 1 | X23: 0 | Y23: 1 | Z23: 0.5045426522 | AA23: 120129202.9 | AC23: =TechnologyInputs!Y23 -> 0 | AD23: =TechnologyInputs!Z23 -> 1 | AE23: =TechnologyInputs!AA23 -> 1 | AF23: =TechnologyInputs!AB23 -> 30 | AG23: =TechnologyInputs!AC23 -> 0 | AH23: =TechnologyInputs!AD23 -> 0 | AI23: =TechnologyInputs!AE23 -> 1 | AJ23: =TechnologyInputs!AF23 -> 1 | AK23: =TechnologyInputs!AG23 -> 0 | AL23: 1 | AM23: 1 | AN23: 0 | AO23: 1 | AP23: 0 | AQ23: 0 | AS23: =TechnologyInputs!AI23 -> 26000 | AT23: =TechnologyInputs!AJ23 -> 1429 | AU23: =TechnologyInputs!AK23 -> 0.8 | AV23: =TechnologyInputs!AL23 -> 30 | AW23: =TechnologyInputs!AM23 -> 0.02 | AX23: =TechnologyInputs!AN23 -> 0 | AY23: =TechnologyInputs!AO23 -> 1 | AZ23: =TechnologyInputs!AP23 -> 1 | BA23: =TechnologyInputs!AQ23 -> 0.85 | BB23: =TechnologyInputs!AR23 -> 0.2 | BC23: 1.000059993 | BD23: 1 | BE23: 0 | BF23: 1 | BG23: 26001.55981 | BH23: 37145085.45 | BJ23: =TechnologyInputs!AT23 -> 2.4 | BK23: =TechnologyInputs!AU23 -> 100 | BL23: =TechnologyInputs!AV23 -> 0.7 | BM23: =TechnologyInputs!AW23 -> 30 | BN23: =TechnologyInputs!AX23 -> 0.02 | BO23: =TechnologyInputs!AY23 -> 0 | BP23: =TechnologyInputs!AZ23 -> 0.42 | BQ23: =TechnologyInputs!BA23 -> 0.85 | BR23: =TechnologyInputs!BB23 -> 0.2 | BS23: 1 | BT23: 1 | BU23: 0 | BV23: 1 | BW23: 2.4 | BX23: 240000000 | BZ23: 397274288.3 | CA23: 3.972742883
A24: =TechnologyInputs!A24 -> 14 | B24: =TechnologyInputs!B24 -> Biomass+AD | C24: =TechnologyInputs!C24 -> Digestor | D24: =TechnologyInputs!D24 -> Gas accumulator | E24: =TechnologyInputs!E24 -> Turbine /eng. | G24: 100 | H24: =K24*AI24*(MAX((24-E4),1.5)) -> 5294.117647 | I24: 294.1176471 | J24: 294.1176471 | K24: =J24*TechnologyInputs!H24 -> 294.1176471 | M24: =TechnologyInputs!N24 -> 0 | N24: =TechnologyInputs!O24 -> 1 | O24: =TechnologyInputs!P24 -> 1 | P24: =TechnologyInputs!Q24 -> 1 | Q24: =TechnologyInputs!R24 -> 20 | R24: =TechnologyInputs!S24 -> 0 | S24: =TechnologyInputs!T24 -> 0 | T24: =TechnologyInputs!V24 -> 0.85 | U24: =TechnologyInputs!W24 -> 0.05 | V24: 1 | W24: 1 | X24: 0 | Y24: 1 | Z24: 0 | AA24: 0 | AC24: =TechnologyInputs!Y24 -> 1.42 | AD24: =TechnologyInputs!Z24 -> 7.26 | AE24: =TechnologyInputs!AA24 -> 0.7 | AF24: =TechnologyInputs!AB24 -> 20 | AG24: =TechnologyInputs!AC24 -> 0.065 | AH24: =TechnologyInputs!AD24 -> 0 | AI24: =TechnologyInputs!AE24 -> 1 | AJ24: =TechnologyInputs!AF24 -> 0.85 | AK24: =TechnologyInputs!AG24 -> 0.05 | AL24: 0.3294008089 | AM24: 1 | AN24: 0 | AO24: 1 | AP24: 0.4677491486 | AQ24: 137573279 | AS24: =TechnologyInputs!AI24 -> 12391 | AT24: =TechnologyInputs!AJ24 -> 11 | AU24: =TechnologyInputs!AK24 -> 0.8 | AV24: =TechnologyInputs!AL24 -> 20 | AW24: =TechnologyInputs!AM24 -> 0.065 | AX24: =TechnologyInputs!AN24 -> 0 | AY24: =TechnologyInputs!AO24 -> 1 | AZ24: =TechnologyInputs!AP24 -> 1 | BA24: =TechnologyInputs!AQ24 -> 0.85 | BB24: =TechnologyInputs!AR24 -> 0.05 | BC24: =MAX(0.623,(H24/AT24)^(AU24-1)) -> 0.623 | BD24: 1 | BE24: 0 | BF24: 1 | BG24: 7719.593 | BH24: 40868433.53 | BJ24: =TechnologyInputs!AT24 -> 0.91 | BK24: =TechnologyInputs!AU24 -> 2.5 | BL24: =TechnologyInputs!AV24 -> 0.7 | BM24: =TechnologyInputs!AW24 -> 20 | BN24: =TechnologyInputs!AX24 -> 0.065 | BO24: =TechnologyInputs!AY24 -> 0 | BP24: =TechnologyInputs!AZ24 -> 0.34 | BQ24: =TechnologyInputs!BA24 -> 0.85 | BR24: =TechnologyInputs!BB24 -> 0.05 | BS24: =MAX(0.66,(G24/BK24)^(BL24-1)) -> 0.66 | BT24: 1 | BU24: 0 | BV24: 1 | BW24: 0.6006 | BX24: 60060000 | BZ24: 238501712.5 | CA24: 2.385017125
A25: =TechnologyInputs!A25 -> 15 | B25: =TechnologyInputs!B25 -> Dry Biomass $5/GJ | C25: =TechnologyInputs!C25 -> na | D25: =TechnologyInputs!D25 -> Depot | E25: =TechnologyInputs!E25 -> Boiler&Turbine | G25: 100 | H25: =K25*E$4*90 -> 4500 | I25: 8.333333333 | J25: 416.6666667 | K25: =J25*TechnologyInputs!H25 -> 8.333333333 | M25: =TechnologyInputs!N25 -> 0 | N25: =TechnologyInputs!O25 -> 1 | O25: =TechnologyInputs!P25 -> 0.5 | P25: =TechnologyInputs!Q25 -> 1 | Q25: =TechnologyInputs!R25 -> 25 | R25: =TechnologyInputs!S25 -> 0 | S25: =TechnologyInputs!T25 -> 0 | T25: =TechnologyInputs!V25 -> 0.85 | U25: =TechnologyInputs!W25 -> 0.05 | V25: 1 | W25: 1 | X25: 0 | Y25: 1 | Z25: 0 | AA25: 0 | AC25: =TechnologyInputs!Y25 -> 0 | AD25: =TechnologyInputs!Z25 -> 1 | AE25: =TechnologyInputs!AA25 -> 1 | AF25: =TechnologyInputs!AB25 -> 25 | AG25: =TechnologyInputs!AC25 -> 0 | AH25: =TechnologyInputs!AD25 -> 0 | AI25: =TechnologyInputs!AE25 -> 1 | AJ25: =TechnologyInputs!AF25 -> 1 | AK25: =TechnologyInputs!AG25 -> 0 | AL25: 1 | AM25: 1 | AN25: 0 | AO25: 1 | AP25: 0 | AQ25: 0 | AS25: =TechnologyInputs!AI25 -> 6.7 | AT25: =TechnologyInputs!AJ25 -> 44384 | AU25: =TechnologyInputs!AK25 -> 1 | AV25: =TechnologyInputs!AL25 -> 25 | AW25: =TechnologyInputs!AM25 -> 0.036 | AX25: =TechnologyInputs!AN25 -> 0 | AY25: =TechnologyInputs!AO25 -> 1 | AZ25: =TechnologyInputs!AP25 -> 1 | BA25: =TechnologyInputs!AQ25 -> 0.85 | BB25: =TechnologyInputs!AR25 -> 0 | BC25: =(H25/AT25)^(AU25-1) -> 1 | BD25: 1 | BE25: 0 | BF25: 1 | BG25: 6.7 | BH25: 30150 | BJ25: =TechnologyInputs!AT25 -> 4.89 | BK25: =TechnologyInputs!AU25 -> 15 | BL25: =TechnologyInputs!AV25 -> 0.7 | BM25: =TechnologyInputs!AW25 -> 25 | BN25: =TechnologyInputs!AX25 -> 0.036 | BO25: =TechnologyInputs!AY25 -> 0 | BP25: =TechnologyInputs!AZ25 -> 0.24 | BQ25: =TechnologyInputs!BA25 -> 0.85 | BR25: =TechnologyInputs!BB25 -> 0.05 | BS25: =MAX(0.697,(G25/BK25)^(BL25-1)) -> 0.697 | BT25: 1 | BU25: 0 | BV25: 1 | BW25: 3.40833 | BX25: 340833000 | BZ25: 340863150 | CA25: 3.4086315
A26: =TechnologyInputs!A26 -> 16 | B26: =TechnologyInputs!B26 -> Dry Biomass $2.5/GJ | C26: =TechnologyInputs!C26 -> na | D26: =TechnologyInputs!D26 -> Depot | E26: =TechnologyInputs!E26 -> Boiler&Turbine | G26: 100 | H26: =K26*E$4*90 -> 4500 | I26: 8.333333333 | J26: 416.6666667 | K26: =J26*TechnologyInputs!H26 -> 8.333333333 | M26: =TechnologyInputs!N26 -> 0 | N26: =TechnologyInputs!O26 -> 1 | O26: =TechnologyInputs!P26 -> 0.5 | P26: =TechnologyInputs!Q26 -> 1 | Q26: =TechnologyInputs!R26 -> 25 | R26: =TechnologyInputs!S26 -> 0 | S26: =TechnologyInputs!T26 -> 0 | T26: =TechnologyInputs!V26 -> 0.85 | U26: =TechnologyInputs!W26 -> 0.05 | V26: 1 | W26: 1 | X26: 0 | Y26: 1 | Z26: 0 | AA26: 0 | AC26: =TechnologyInputs!Y26 -> 0 | AD26: =TechnologyInputs!Z26 -> 1 | AE26: =TechnologyInputs!AA26 -> 1 | AF26: =TechnologyInputs!AB26 -> 25 | AG26: =TechnologyInputs!AC26 -> 0 | AH26: =TechnologyInputs!AD26 -> 0 | AI26: =TechnologyInputs!AE26 -> 1 | AJ26: =TechnologyInputs!AF26 -> 1 | AK26: =TechnologyInputs!AG26 -> 0 | AL26: 1 | AM26: =(1+AK26)^($E$6-$E$5) -> 1 | AN26: =LOG(AM26,2) -> 0 | AO26: =AJ26^AN26 -> 1 | AP26: =AL26*AC26*AO26 -> 0 | AQ26: 0 | AS26: =TechnologyInputs!AI26 -> 6.7 | AT26: =TechnologyInputs!AJ26 -> 44384 | AU26: =TechnologyInputs!AK26 -> 1 | AV26: =TechnologyInputs!AL26 -> 25 | AW26: =TechnologyInputs!AM26 -> 0.036 | AX26: =TechnologyInputs!AN26 -> 0 | AY26: =TechnologyInputs!AO26 -> 1 | AZ26: =TechnologyInputs!AP26 -> 1 | BA26: =TechnologyInputs!AQ26 -> 0.85 | BB26: =TechnologyInputs!AR26 -> 0 | BC26: =(H26/AT26)^(AU26-1) -> 1 | BD26: =(1+BB26)^($E$6-$E$5) -> 1 | BE26: =LOG(BD26,2) -> 0 | BF26: =BA26^BE26 -> 1 | BG26: =BC26*AS26*BF26 -> 6.7 | BH26: 30150 | BJ26: =TechnologyInputs!AT26 -> 4.89 | BK26: =TechnologyInputs!AU26 -> 15 | BL26: =TechnologyInputs!AV26 -> 0.7 | BM26: =TechnologyInputs!AW26 -> 25 | BN26: =TechnologyInputs!AX26 -> 0.036 | BO26: =TechnologyInputs!AY26 -> 0 | BP26: =TechnologyInputs!AZ26 -> 0.24 | BQ26: =TechnologyInputs!BA26 -> 0.85 | BR26: =TechnologyInputs!BB26 -> 0.05 | BS26: =MAX(0.697,(G26/BK26)^(BL26-1)) -> 0.697 | BT26: =(1+BR26)^($E$6-$E$5) -> 1 | BU26: =LOG(BT26,2) -> 0 | BV26: =BQ26^BU26 -> 1 | BW26: =BS26*BJ26*BV26 -> 3.40833 | BX26: 340833000 | BZ26: =AA26+AQ26+BH26+BX26 -> 340863150 | CA26: 3.4086315
A27: =TechnologyInputs!A27 -> 17 | B27: =TechnologyInputs!B27 -> HSA Geothermal | C27: =TechnologyInputs!C27 -> na | D27: =TechnologyInputs!D27 -> Self | E27: =TechnologyInputs!E27 -> Turbine | G27: 100 | H27: 0.1 | I27: 500 | J27: 500 | K27: =J27*TechnologyInputs!H27 -> 500 | M27: =TechnologyInputs!N27 -> 0 | N27: =TechnologyInputs!O27 -> 50 | O27: =TechnologyInputs!P27 -> 1 | P27: =TechnologyInputs!Q27 -> 1 | Q27: =TechnologyInputs!R27 -> 30 | R27: =TechnologyInputs!S27 -> 0.02 | S27: =TechnologyInputs!T27 -> 0 | T27: =TechnologyInputs!V27 -> 0.85 | U27: =TechnologyInputs!W27 -> 0.05 | V27: 1 | W27: 1 | X27: 0 | Y27: 1 | Z27: 0 | AA27: 0 | AC27: =TechnologyInputs!Y27 -> 0 | AD27: =TechnologyInputs!Z27 -> 1 | AE27: =TechnologyInputs!AA27 -> 1 | AF27: =TechnologyInputs!AB27 -> 30 | AG27: =TechnologyInputs!AC27 -> 0 | AH27: =TechnologyInputs!AD27 -> 0 | AI27: =TechnologyInputs!AE27 -> 1 | AJ27: =TechnologyInputs!AF27 -> 1 | AK27: =TechnologyInputs!AG27 -> 0 | AL27: 1 | AM27: 1 | AN27: 0 | AO27: 1 | AP27: 0 | AQ27: 0 | AS27: =TechnologyInputs!AI27 -> 0 | AT27: =TechnologyInputs!AJ27 -> 1 | AU27: =TechnologyInputs!AK27 -> 1 | AV27: =TechnologyInputs!AL27 -> 30 | AW27: =TechnologyInputs!AM27 -> 0 | AX27: =TechnologyInputs!AN27 -> 0 | AY27: =TechnologyInputs!AO27 -> 1 | AZ27: =TechnologyInputs!AP27 -> 1 | BA27: =TechnologyInputs!AQ27 -> 0.85 | BB27: =TechnologyInputs!AR27 -> 0 | BC27: =(H27/AT27)^(AU27-1) -> 1 | BD27: 1 | BE27: 0 | BF27: 1 | BG27: 0 | BH27: 0 | BJ27: =TechnologyInputs!AT27 -> 6.27 | BK27: =TechnologyInputs!AU27 -> 50 | BL27: =TechnologyInputs!AV27 -> 0.7 | BM27: =TechnologyInputs!AW27 -> 30 | BN27: =TechnologyInputs!AX27 -> 0.02 | BO27: =TechnologyInputs!AY27 -> 0 | BP27: =TechnologyInputs!AZ27 -> 0.2 | BQ27: =TechnologyInputs!BA27 -> 0.85 | BR27: =TechnologyInputs!BB27 -> 0.05 | BS27: =(G27/BK27)^(BL27-1) -> 0.8122523964 | BT27: 1 | BU27: 0 | BV27: 1 | BW27: 5.092822525 | BX27: 509282252.5 | BZ27: 509282252.5 | CA27: 5.092822525
A28: =TechnologyInputs!A28 -> 18 | B28: =TechnologyInputs!B28 -> EGS Geothermal | C28: =TechnologyInputs!C28 -> na | D28: =TechnologyInputs!D28 -> Self | E28: =TechnologyInputs!E28 -> Turbine | G28: 100 | H28: 0.1 | I28: 500 | J28: 500 | K28: =J28*TechnologyInputs!H28 -> 500 | M28: =TechnologyInputs!N28 -> 0 | N28: =TechnologyInputs!O28 -> 50 | O28: =TechnologyInputs!P28 -> 1 | P28: =TechnologyInputs!Q28 -> 1 | Q28: =TechnologyInputs!R28 -> 30 | R28: =TechnologyInputs!S28 -> 0.02 | S28: =TechnologyInputs!T28 -> 0 | T28: =TechnologyInputs!V28 -> 0.85 | U28: =TechnologyInputs!W28 -> 0.05 | V28: 1 | W28: 1 | X28: 0 | Y28: 1 | Z28: 0 | AA28: 0 | AC28: =TechnologyInputs!Y28 -> 0 | AD28: =TechnologyInputs!Z28 -> 1 | AE28: =TechnologyInputs!AA28 -> 1 | AF28: =TechnologyInputs!AB28 -> 30 | AG28: =TechnologyInputs!AC28 -> 0 | AH28: =TechnologyInputs!AD28 -> 0 | AI28: =TechnologyInputs!AE28 -> 1 | AJ28: =TechnologyInputs!AF28 -> 1 | AK28: =TechnologyInputs!AG28 -> 0 | AL28: 1 | AM28: 1 | AN28: 0 | AO28: 1 | AP28: 0 | AQ28: 0 | AS28: =TechnologyInputs!AI28 -> 0 | AT28: =TechnologyInputs!AJ28 -> 1 | AU28: =TechnologyInputs!AK28 -> 1 | AV28: =TechnologyInputs!AL28 -> 30 | AW28: =TechnologyInputs!AM28 -> 0 | AX28: =TechnologyInputs!AN28 -> 0 | AY28: =TechnologyInputs!AO28 -> 1 | AZ28: =TechnologyInputs!AP28 -> 1 | BA28: =TechnologyInputs!AQ28 -> 0.85 | BB28: =TechnologyInputs!AR28 -> 0 | BC28: =(H28/AT28)^(AU28-1) -> 1 | BD28: 1 | BE28: 0 | BF28: 1 | BG28: 0 | BH28: 0 | BJ28: =TechnologyInputs!AT28 -> 14 | BK28: =TechnologyInputs!AU28 -> 50 | BL28: =TechnologyInputs!AV28 -> 0.8 | BM28: =TechnologyInputs!AW28 -> 30 | BN28: =TechnologyInputs!AX28 -> 0.02 | BO28: =TechnologyInputs!AY28 -> 0 | BP28: =TechnologyInputs!AZ28 -> 0.2 | BQ28: =TechnologyInputs!BA28 -> 0.85 | BR28: =TechnologyInputs!BB28 -> 0.05 | BS28: =(G28/BK28)^(BL28-1) -> 0.8705505633 | BT28: 1 | BU28: 0 | BV28: 1 | BW28: 12.18770789 | BX28: 1218770789 | BZ28: 1218770789 | CA28: 12.18770789
